{"text_format":"1","workbook":"xlsx","n_sheets":2,"sheets":["INVENTORY FORM","LOOKUP"],"not_rendered":{"charts":0,"images":1,"macros":1,"external_links":0,"defined_names":8,"comments":1,"pivot_tables":0},"unopened":[],"bounds":{"document_bytes":16777216,"sheet_cells":100000,"rows_first":2000,"rows_last":500,"rows_between":2000,"halvings":0,"cell_chars":16384,"cell_head_chars":4096},"cells_cut":0,"cells_raw":0,"read":"whole","date_system":"1900"}

{"sheet":"INVENTORY FORM","index":0,"n_rows":400,"n_cols":12,"rows_kept":400,"cut":false,"hidden":false,"merged":[[0,1,0,7],[1,1,1,7],[6,4,6,6],[5,1,5,3],[10,1,10,3],[3,1,3,3],[5,4,5,6],[9,2,9,3],[7,1,7,3]]}
[null,"DEPARTMENT OF FORENSIC SCIENCE (DFS)",null,null,null,null,null,null,"Frequently Asked Questions"]
[null,"Physical Evidence Recovery Kit (PERK) Inventory",null,null,null,null,null,null,"Return To Instructions"]
[]
[null,"Agency Information"]
[]
[null,"Agency Name:",null,null,null,null,null,"Agency Contact:"]
[null,null,null,null,null,null,null,"Contact Phone No.:"]
[null,"Date of Inventory:",null,null,null,null,null,"Contact E-Mail:"]
[null,null,null,null,"# Kits Received","# Kits Submitted"]
[null,"                  ","CY 2013:"]
[null,"PERK - Specific Information"]
[]
[]
[null,null,"Date of","Date PERK","Type of ","Hospital","Reason PERK Not Submitted","If Reason PERK Not ","Primary Offense","If Primary Offense","Secondary Offense","If Secondary Offense"]
[null,"Agency ","Offense","Collected","Victim","PERK #","Hold cursor here to see reason list","Submitted Is \"Other\"","Hold cursor here to see offense list"," Is \"Other\"","If Applicable,","Is \"Other\""]
["Agency","Case #","(mm/dd/yyyy)","(mm/dd/yyyy)","PERK","(if available)","(Please select from dropdown)"," (Please explain below)","(Please select from dropdown)","(Please explain below)","(Please select from dropdown)","(Please explain below)"]
[{"$f":"IF($E$6=\"\",\"\",IF(B17=\"\",\"\",IF($E$6=\"Other (Please Indicate Below)\",$E$7,$E$6)))","v":""},"example: 123","2000-01-01","2000-01-02","OCME",{"$f":"IF(E17=\"Hospital\",\"Insert PERK # Here\",IF(E17=\"OCME\",\"N/A\",\"\"))","v":"N/A"},"Incident currently under investigation",{"$f":"IF(G17=\"\",\"\",IF(G17=\"Other:\",\"Explain Here\",\"N/A\"))","v":"N/A"},"Carnal Knowledge",{"$f":"IF(I17=\"\",\"\",IF(I17=\"Other:\",\"Explain Here\",\"N/A\"))","v":"N/A"},"Attempted Rape",{"$f":"IF(K17=\"\",\"\",IF(K17=\"Other:\",\"Explain Here\",\"N/A\"))","v":"N/A"}]
[{"$f":"IF($E$6=\"\",\"\",IF(B18=\"\",\"\",IF($E$6=\"Other (Please Indicate Below)\",$E$7,$E$6)))","v":""},null,null,null,null,{"$f":"IF(E18=\"Hospital\",\"Insert PERK # Here\",IF(E18=\"OCME\",\"N/A\",\"\"))","v":""},null,{"$f":"IF(G18=\"\",\"\",IF(G18=\"Other\",\"Explain Here\",\"N/A\"))","v":""},null,{"$f":"IF(I18=\"\",\"\",IF(I18=\"Other\",\"Explain Here\",\"N/A\"))","v":""},null,{"$f":"IF(K18=\"\",\"\",IF(K18=\"Other\",\"Explain Here\",\"N/A\"))","v":""}]
[{"$f":"IF($E$6=\"\",\"\",IF(B19=\"\",\"\",IF($E$6=\"Other (Please Indicate Below)\",$E$7,$E$6)))","v":""},null,null,null,null,{"$f":"IF(E19=\"Hospital\",\"Insert PERK # Here\",IF(E19=\"OCME\",\"N/A\",\"\"))","v":""},null,{"$f":"IF(G19=\"\",\"\",IF(G19=\"Other\",\"Explain Here\",\"N/A\"))","v":""},null,{"$f":"IF(I19=\"\",\"\",IF(I19=\"Other\",\"Explain Here\",\"N/A\"))","v":""},null,{"$f":"IF(K19=\"\",\"\",IF(K19=\"Other\",\"Explain Here\",\"N/A\"))","v":""}]
[{"$f":"IF($E$6=\"\",\"\",IF(B20=\"\",\"\",IF($E$6=\"Other (Please Indicate Below)\",$E$7,$E$6)))","v":""},null,null,null,null,{"$f":"IF(E20=\"Hospital\",\"Insert PERK # Here\",IF(E20=\"OCME\",\"N/A\",\"\"))","v":""},null,"",null,"",null,""]
[{"$f":"IF($E$6=\"\",\"\",IF(B21=\"\",\"\",IF($E$6=\"Other (Please Indicate Below)\",$E$7,$E$6)))","v":""},null,null,null,null,{"$f":"IF(E21=\"Hospital\",\"Insert PERK # Here\",IF(E21=\"OCME\",\"N/A\",\"\"))","v":""},null,"",null,"",null,""]
[{"$f":"IF($E$6=\"\",\"\",IF(B22=\"\",\"\",IF($E$6=\"Other (Please Indicate Below)\",$E$7,$E$6)))","v":""},null,null,null,null,{"$f":"IF(E22=\"Hospital\",\"Insert PERK # Here\",IF(E22=\"OCME\",\"N/A\",\"\"))","v":""},null,"",null,"",null,""]
[{"$f":"IF($E$6=\"\",\"\",IF(B23=\"\",\"\",IF($E$6=\"Other (Please Indicate Below)\",$E$7,$E$6)))","v":""},null,null,null,null,{"$f":"IF(E23=\"Hospital\",\"Insert PERK # Here\",IF(E23=\"OCME\",\"N/A\",\"\"))","v":""},null,"",null,"",null,""]
[{"$f":"IF($E$6=\"\",\"\",IF(B24=\"\",\"\",IF($E$6=\"Other (Please Indicate Below)\",$E$7,$E$6)))","v":""},null,null,null,null,{"$f":"IF(E24=\"Hospital\",\"Insert PERK # Here\",IF(E24=\"OCME\",\"N/A\",\"\"))","v":""},null,"",null,"",null,""]
[{"$f":"IF($E$6=\"\",\"\",IF(B25=\"\",\"\",IF($E$6=\"Other (Please Indicate Below)\",$E$7,$E$6)))","v":""},null,null,null,null,{"$f":"IF(E25=\"Hospital\",\"Insert PERK # Here\",IF(E25=\"OCME\",\"N/A\",\"\"))","v":""},null,"",null,"",null,""]
[{"$f":"IF($E$6=\"\",\"\",IF(B26=\"\",\"\",IF($E$6=\"Other (Please Indicate Below)\",$E$7,$E$6)))","v":""},null,null,null,null,{"$f":"IF(E26=\"Hospital\",\"Insert PERK # Here\",IF(E26=\"OCME\",\"N/A\",\"\"))","v":""},null,"",null,"",null,""]
[{"$f":"IF($E$6=\"\",\"\",IF(B27=\"\",\"\",IF($E$6=\"Other (Please Indicate Below)\",$E$7,$E$6)))","v":""},null,null,null,null,{"$f":"IF(E27=\"Hospital\",\"Insert PERK # Here\",IF(E27=\"OCME\",\"N/A\",\"\"))","v":""},null,"",null,"",null,""]
[{"$f":"IF($E$6=\"\",\"\",IF(B28=\"\",\"\",IF($E$6=\"Other (Please Indicate Below)\",$E$7,$E$6)))","v":""},null,null,null,null,{"$f":"IF(E28=\"Hospital\",\"Insert PERK # Here\",IF(E28=\"OCME\",\"N/A\",\"\"))","v":""},null,"",null,"",null,""]
[{"$f":"IF($E$6=\"\",\"\",IF(B29=\"\",\"\",IF($E$6=\"Other (Please Indicate Below)\",$E$7,$E$6)))","v":""},null,null,null,null,{"$f":"IF(E29=\"Hospital\",\"Insert PERK # Here\",IF(E29=\"OCME\",\"N/A\",\"\"))","v":""},null,"",null,"",null,""]
[{"$f":"IF($E$6=\"\",\"\",IF(B30=\"\",\"\",IF($E$6=\"Other (Please Indicate Below)\",$E$7,$E$6)))","v":""},null,null,null,null,{"$f":"IF(E30=\"Hospital\",\"Insert PERK # Here\",IF(E30=\"OCME\",\"N/A\",\"\"))","v":""},null,"",null,"",null,""]
[{"$f":"IF($E$6=\"\",\"\",IF(B31=\"\",\"\",IF($E$6=\"Other (Please Indicate Below)\",$E$7,$E$6)))","v":""},null,null,null,null,{"$f":"IF(E31=\"Hospital\",\"Insert PERK # Here\",IF(E31=\"OCME\",\"N/A\",\"\"))","v":""},null,"",null,"",null,""]
[{"$f":"IF($E$6=\"\",\"\",IF(B32=\"\",\"\",IF($E$6=\"Other (Please Indicate Below)\",$E$7,$E$6)))","v":""},null,null,null,null,{"$f":"IF(E32=\"Hospital\",\"Insert PERK # Here\",IF(E32=\"OCME\",\"N/A\",\"\"))","v":""},null,"",null,"",null,""]
[{"$f":"IF($E$6=\"\",\"\",IF(B33=\"\",\"\",IF($E$6=\"Other (Please Indicate Below)\",$E$7,$E$6)))","v":""},null,null,null,null,{"$f":"IF(E33=\"Hospital\",\"Insert PERK # Here\",IF(E33=\"OCME\",\"N/A\",\"\"))","v":""},null,"",null,"",null,""]
[{"$f":"IF($E$6=\"\",\"\",IF(B34=\"\",\"\",IF($E$6=\"Other (Please Indicate Below)\",$E$7,$E$6)))","v":""},null,null,null,null,{"$f":"IF(E34=\"Hospital\",\"Insert PERK # Here\",IF(E34=\"OCME\",\"N/A\",\"\"))","v":""},null,"",null,"",null,""]
[{"$f":"IF($E$6=\"\",\"\",IF(B35=\"\",\"\",IF($E$6=\"Other (Please Indicate Below)\",$E$7,$E$6)))","v":""},null,null,null,null,{"$f":"IF(E35=\"Hospital\",\"Insert PERK # Here\",IF(E35=\"OCME\",\"N/A\",\"\"))","v":""},null,"",null,"",null,""]
[{"$f":"IF($E$6=\"\",\"\",IF(B36=\"\",\"\",IF($E$6=\"Other (Please Indicate Below)\",$E$7,$E$6)))","v":""},null,null,null,null,{"$f":"IF(E36=\"Hospital\",\"Insert PERK # Here\",IF(E36=\"OCME\",\"N/A\",\"\"))","v":""},null,"",null,"",null,""]
[{"$f":"IF($E$6=\"\",\"\",IF(B37=\"\",\"\",IF($E$6=\"Other (Please Indicate Below)\",$E$7,$E$6)))","v":""},null,null,null,null,{"$f":"IF(E37=\"Hospital\",\"Insert PERK # Here\",IF(E37=\"OCME\",\"N/A\",\"\"))","v":""},null,"",null,"",null,""]
[{"$f":"IF($E$6=\"\",\"\",IF(B38=\"\",\"\",IF($E$6=\"Other (Please Indicate Below)\",$E$7,$E$6)))","v":""},null,null,null,null,{"$f":"IF(E38=\"Hospital\",\"Insert PERK # Here\",IF(E38=\"OCME\",\"N/A\",\"\"))","v":""},null,"",null,"",null,""]
[{"$f":"IF($E$6=\"\",\"\",IF(B39=\"\",\"\",IF($E$6=\"Other (Please Indicate Below)\",$E$7,$E$6)))","v":""},null,null,null,null,{"$f":"IF(E39=\"Hospital\",\"Insert PERK # Here\",IF(E39=\"OCME\",\"N/A\",\"\"))","v":""},null,"",null,"",null,""]
[{"$f":"IF($E$6=\"\",\"\",IF(B40=\"\",\"\",IF($E$6=\"Other (Please Indicate Below)\",$E$7,$E$6)))","v":""},null,null,null,null,{"$f":"IF(E40=\"Hospital\",\"Insert PERK # Here\",IF(E40=\"OCME\",\"N/A\",\"\"))","v":""},null,"",null,"",null,""]
[{"$f":"IF($E$6=\"\",\"\",IF(B41=\"\",\"\",IF($E$6=\"Other (Please Indicate Below)\",$E$7,$E$6)))","v":""},null,null,null,null,{"$f":"IF(E41=\"Hospital\",\"Insert PERK # Here\",IF(E41=\"OCME\",\"N/A\",\"\"))","v":""},null,"",null,"",null,""]
[{"$f":"IF($E$6=\"\",\"\",IF(B42=\"\",\"\",IF($E$6=\"Other (Please Indicate Below)\",$E$7,$E$6)))","v":""},null,null,null,null,{"$f":"IF(E42=\"Hospital\",\"Insert PERK # Here\",IF(E42=\"OCME\",\"N/A\",\"\"))","v":""},null,"",null,"",null,""]
[{"$f":"IF($E$6=\"\",\"\",IF(B43=\"\",\"\",IF($E$6=\"Other (Please Indicate Below)\",$E$7,$E$6)))","v":""},null,null,null,null,{"$f":"IF(E43=\"Hospital\",\"Insert PERK # Here\",IF(E43=\"OCME\",\"N/A\",\"\"))","v":""},null,"",null,"",null,""]
[{"$f":"IF($E$6=\"\",\"\",IF(B44=\"\",\"\",IF($E$6=\"Other (Please Indicate Below)\",$E$7,$E$6)))","v":""},null,null,null,null,{"$f":"IF(E44=\"Hospital\",\"Insert PERK # Here\",IF(E44=\"OCME\",\"N/A\",\"\"))","v":""},null,"",null,"",null,""]
[{"$f":"IF($E$6=\"\",\"\",IF(B45=\"\",\"\",IF($E$6=\"Other (Please Indicate Below)\",$E$7,$E$6)))","v":""},null,null,null,null,{"$f":"IF(E45=\"Hospital\",\"Insert PERK # Here\",IF(E45=\"OCME\",\"N/A\",\"\"))","v":""},null,"",null,"",null,""]
[{"$f":"IF($E$6=\"\",\"\",IF(B46=\"\",\"\",IF($E$6=\"Other (Please Indicate Below)\",$E$7,$E$6)))","v":""},null,null,null,null,{"$f":"IF(E46=\"Hospital\",\"Insert PERK # Here\",IF(E46=\"OCME\",\"N/A\",\"\"))","v":""},null,"",null,"",null,""]
[{"$f":"IF($E$6=\"\",\"\",IF(B47=\"\",\"\",IF($E$6=\"Other (Please Indicate Below)\",$E$7,$E$6)))","v":""},null,null,null,null,{"$f":"IF(E47=\"Hospital\",\"Insert PERK # Here\",IF(E47=\"OCME\",\"N/A\",\"\"))","v":""},null,"",null,"",null,""]
[{"$f":"IF($E$6=\"\",\"\",IF(B48=\"\",\"\",IF($E$6=\"Other (Please Indicate Below)\",$E$7,$E$6)))","v":""},null,null,null,null,{"$f":"IF(E48=\"Hospital\",\"Insert PERK # Here\",IF(E48=\"OCME\",\"N/A\",\"\"))","v":""},null,"",null,"",null,""]
[{"$f":"IF($E$6=\"\",\"\",IF(B49=\"\",\"\",IF($E$6=\"Other (Please Indicate Below)\",$E$7,$E$6)))","v":""},null,null,null,null,{"$f":"IF(E49=\"Hospital\",\"Insert PERK # Here\",IF(E49=\"OCME\",\"N/A\",\"\"))","v":""},null,"",null,"",null,""]
[{"$f":"IF($E$6=\"\",\"\",IF(B50=\"\",\"\",IF($E$6=\"Other (Please Indicate Below)\",$E$7,$E$6)))","v":""},null,null,null,null,{"$f":"IF(E50=\"Hospital\",\"Insert PERK # Here\",IF(E50=\"OCME\",\"N/A\",\"\"))","v":""},null,"",null,"",null,""]
[{"$f":"IF($E$6=\"\",\"\",IF(B51=\"\",\"\",IF($E$6=\"Other (Please Indicate Below)\",$E$7,$E$6)))","v":""},null,null,null,null,{"$f":"IF(E51=\"Hospital\",\"Insert PERK # Here\",IF(E51=\"OCME\",\"N/A\",\"\"))","v":""},null,"",null,"",null,""]
[{"$f":"IF($E$6=\"\",\"\",IF(B52=\"\",\"\",IF($E$6=\"Other (Please Indicate Below)\",$E$7,$E$6)))","v":""},null,null,null,null,{"$f":"IF(E52=\"Hospital\",\"Insert PERK # Here\",IF(E52=\"OCME\",\"N/A\",\"\"))","v":""},null,"",null,"",null,""]
[{"$f":"IF($E$6=\"\",\"\",IF(B53=\"\",\"\",IF($E$6=\"Other (Please Indicate Below)\",$E$7,$E$6)))","v":""},null,null,null,null,{"$f":"IF(E53=\"Hospital\",\"Insert PERK # Here\",IF(E53=\"OCME\",\"N/A\",\"\"))","v":""},null,"",null,"",null,""]
[{"$f":"IF($E$6=\"\",\"\",IF(B54=\"\",\"\",IF($E$6=\"Other (Please Indicate Below)\",$E$7,$E$6)))","v":""},null,null,null,null,{"$f":"IF(E54=\"Hospital\",\"Insert PERK # Here\",IF(E54=\"OCME\",\"N/A\",\"\"))","v":""},null,"",null,"",null,""]
[{"$f":"IF($E$6=\"\",\"\",IF(B55=\"\",\"\",IF($E$6=\"Other (Please Indicate Below)\",$E$7,$E$6)))","v":""},null,null,null,null,{"$f":"IF(E55=\"Hospital\",\"Insert PERK # Here\",IF(E55=\"OCME\",\"N/A\",\"\"))","v":""},null,"",null,"",null,""]
[{"$f":"IF($E$6=\"\",\"\",IF(B56=\"\",\"\",IF($E$6=\"Other (Please Indicate Below)\",$E$7,$E$6)))","v":""},null,null,null,null,{"$f":"IF(E56=\"Hospital\",\"Insert PERK # Here\",IF(E56=\"OCME\",\"N/A\",\"\"))","v":""},null,"",null,"",null,""]
[{"$f":"IF($E$6=\"\",\"\",IF(B57=\"\",\"\",IF($E$6=\"Other (Please Indicate Below)\",$E$7,$E$6)))","v":""},null,null,null,null,{"$f":"IF(E57=\"Hospital\",\"Insert PERK # Here\",IF(E57=\"OCME\",\"N/A\",\"\"))","v":""},null,"",null,"",null,""]
[{"$f":"IF($E$6=\"\",\"\",IF(B58=\"\",\"\",IF($E$6=\"Other (Please Indicate Below)\",$E$7,$E$6)))","v":""},null,null,null,null,{"$f":"IF(E58=\"Hospital\",\"Insert PERK # Here\",IF(E58=\"OCME\",\"N/A\",\"\"))","v":""},null,"",null,"",null,""]
[{"$f":"IF($E$6=\"\",\"\",IF(B59=\"\",\"\",IF($E$6=\"Other (Please Indicate Below)\",$E$7,$E$6)))","v":""},null,null,null,null,{"$f":"IF(E59=\"Hospital\",\"Insert PERK # Here\",IF(E59=\"OCME\",\"N/A\",\"\"))","v":""},null,"",null,"",null,""]
[{"$f":"IF($E$6=\"\",\"\",IF(B60=\"\",\"\",IF($E$6=\"Other (Please Indicate Below)\",$E$7,$E$6)))","v":""},null,null,null,null,{"$f":"IF(E60=\"Hospital\",\"Insert PERK # Here\",IF(E60=\"OCME\",\"N/A\",\"\"))","v":""},null,"",null,"",null,""]
[{"$f":"IF($E$6=\"\",\"\",IF(B61=\"\",\"\",IF($E$6=\"Other (Please Indicate Below)\",$E$7,$E$6)))","v":""},null,null,null,null,{"$f":"IF(E61=\"Hospital\",\"Insert PERK # Here\",IF(E61=\"OCME\",\"N/A\",\"\"))","v":""},null,"",null,"",null,""]
[{"$f":"IF($E$6=\"\",\"\",IF(B62=\"\",\"\",IF($E$6=\"Other (Please Indicate Below)\",$E$7,$E$6)))","v":""},null,null,null,null,{"$f":"IF(E62=\"Hospital\",\"Insert PERK # Here\",IF(E62=\"OCME\",\"N/A\",\"\"))","v":""},null,"",null,"",null,""]
[{"$f":"IF($E$6=\"\",\"\",IF(B63=\"\",\"\",IF($E$6=\"Other (Please Indicate Below)\",$E$7,$E$6)))","v":""},null,null,null,null,{"$f":"IF(E63=\"Hospital\",\"Insert PERK # Here\",IF(E63=\"OCME\",\"N/A\",\"\"))","v":""},null,"",null,"",null,""]
[{"$f":"IF($E$6=\"\",\"\",IF(B64=\"\",\"\",IF($E$6=\"Other (Please Indicate Below)\",$E$7,$E$6)))","v":""},null,null,null,null,{"$f":"IF(E64=\"Hospital\",\"Insert PERK # Here\",IF(E64=\"OCME\",\"N/A\",\"\"))","v":""},null,"",null,"",null,""]
[{"$f":"IF($E$6=\"\",\"\",IF(B65=\"\",\"\",IF($E$6=\"Other (Please Indicate Below)\",$E$7,$E$6)))","v":""},null,null,null,null,{"$f":"IF(E65=\"Hospital\",\"Insert PERK # Here\",IF(E65=\"OCME\",\"N/A\",\"\"))","v":""},null,"",null,"",null,""]
[{"$f":"IF($E$6=\"\",\"\",IF(B66=\"\",\"\",IF($E$6=\"Other (Please Indicate Below)\",$E$7,$E$6)))","v":""},null,null,null,null,{"$f":"IF(E66=\"Hospital\",\"Insert PERK # Here\",IF(E66=\"OCME\",\"N/A\",\"\"))","v":""},null,"",null,"",null,""]
[{"$f":"IF($E$6=\"\",\"\",IF(B67=\"\",\"\",IF($E$6=\"Other (Please Indicate Below)\",$E$7,$E$6)))","v":""},null,null,null,null,{"$f":"IF(E67=\"Hospital\",\"Insert PERK # Here\",IF(E67=\"OCME\",\"N/A\",\"\"))","v":""},null,"",null,"",null,""]
[{"$f":"IF($E$6=\"\",\"\",IF(B68=\"\",\"\",IF($E$6=\"Other (Please Indicate Below)\",$E$7,$E$6)))","v":""},null,null,null,null,{"$f":"IF(E68=\"Hospital\",\"Insert PERK # Here\",IF(E68=\"OCME\",\"N/A\",\"\"))","v":""},null,"",null,"",null,""]
[{"$f":"IF($E$6=\"\",\"\",IF(B69=\"\",\"\",IF($E$6=\"Other (Please Indicate Below)\",$E$7,$E$6)))","v":""},null,null,null,null,{"$f":"IF(E69=\"Hospital\",\"Insert PERK # Here\",IF(E69=\"OCME\",\"N/A\",\"\"))","v":""},null,"",null,"",null,""]
[{"$f":"IF($E$6=\"\",\"\",IF(B70=\"\",\"\",IF($E$6=\"Other (Please Indicate Below)\",$E$7,$E$6)))","v":""},null,null,null,null,{"$f":"IF(E70=\"Hospital\",\"Insert PERK # Here\",IF(E70=\"OCME\",\"N/A\",\"\"))","v":""},null,"",null,"",null,""]
[{"$f":"IF($E$6=\"\",\"\",IF(B71=\"\",\"\",IF($E$6=\"Other (Please Indicate Below)\",$E$7,$E$6)))","v":""},null,null,null,null,{"$f":"IF(E71=\"Hospital\",\"Insert PERK # Here\",IF(E71=\"OCME\",\"N/A\",\"\"))","v":""},null,"",null,"",null,""]
[{"$f":"IF($E$6=\"\",\"\",IF(B72=\"\",\"\",IF($E$6=\"Other (Please Indicate Below)\",$E$7,$E$6)))","v":""},null,null,null,null,{"$f":"IF(E72=\"Hospital\",\"Insert PERK # Here\",IF(E72=\"OCME\",\"N/A\",\"\"))","v":""},null,"",null,"",null,""]
[{"$f":"IF($E$6=\"\",\"\",IF(B73=\"\",\"\",IF($E$6=\"Other (Please Indicate Below)\",$E$7,$E$6)))","v":""},null,null,null,null,{"$f":"IF(E73=\"Hospital\",\"Insert PERK # Here\",IF(E73=\"OCME\",\"N/A\",\"\"))","v":""},null,"",null,"",null,""]
[{"$f":"IF($E$6=\"\",\"\",IF(B74=\"\",\"\",IF($E$6=\"Other (Please Indicate Below)\",$E$7,$E$6)))","v":""},null,null,null,null,{"$f":"IF(E74=\"Hospital\",\"Insert PERK # Here\",IF(E74=\"OCME\",\"N/A\",\"\"))","v":""},null,"",null,"",null,""]
[{"$f":"IF($E$6=\"\",\"\",IF(B75=\"\",\"\",IF($E$6=\"Other (Please Indicate Below)\",$E$7,$E$6)))","v":""},null,null,null,null,{"$f":"IF(E75=\"Hospital\",\"Insert PERK # Here\",IF(E75=\"OCME\",\"N/A\",\"\"))","v":""},null,"",null,"",null,""]
[{"$f":"IF($E$6=\"\",\"\",IF(B76=\"\",\"\",IF($E$6=\"Other (Please Indicate Below)\",$E$7,$E$6)))","v":""},null,null,null,null,{"$f":"IF(E76=\"Hospital\",\"Insert PERK # Here\",IF(E76=\"OCME\",\"N/A\",\"\"))","v":""},null,"",null,"",null,""]
[{"$f":"IF($E$6=\"\",\"\",IF(B77=\"\",\"\",IF($E$6=\"Other (Please Indicate Below)\",$E$7,$E$6)))","v":""},null,null,null,null,{"$f":"IF(E77=\"Hospital\",\"Insert PERK # Here\",IF(E77=\"OCME\",\"N/A\",\"\"))","v":""},null,"",null,"",null,""]
[{"$f":"IF($E$6=\"\",\"\",IF(B78=\"\",\"\",IF($E$6=\"Other (Please Indicate Below)\",$E$7,$E$6)))","v":""},null,null,null,null,{"$f":"IF(E78=\"Hospital\",\"Insert PERK # Here\",IF(E78=\"OCME\",\"N/A\",\"\"))","v":""},null,"",null,"",null,""]
[{"$f":"IF($E$6=\"\",\"\",IF(B79=\"\",\"\",IF($E$6=\"Other (Please Indicate Below)\",$E$7,$E$6)))","v":""},null,null,null,null,{"$f":"IF(E79=\"Hospital\",\"Insert PERK # Here\",IF(E79=\"OCME\",\"N/A\",\"\"))","v":""},null,"",null,"",null,""]
[{"$f":"IF($E$6=\"\",\"\",IF(B80=\"\",\"\",IF($E$6=\"Other (Please Indicate Below)\",$E$7,$E$6)))","v":""},null,null,null,null,{"$f":"IF(E80=\"Hospital\",\"Insert PERK # Here\",IF(E80=\"OCME\",\"N/A\",\"\"))","v":""},null,"",null,"",null,""]
[{"$f":"IF($E$6=\"\",\"\",IF(B81=\"\",\"\",IF($E$6=\"Other (Please Indicate Below)\",$E$7,$E$6)))","v":""},null,null,null,null,{"$f":"IF(E81=\"Hospital\",\"Insert PERK # Here\",IF(E81=\"OCME\",\"N/A\",\"\"))","v":""},null,"",null,"",null,""]
[{"$f":"IF($E$6=\"\",\"\",IF(B82=\"\",\"\",IF($E$6=\"Other (Please Indicate Below)\",$E$7,$E$6)))","v":""},null,null,null,null,{"$f":"IF(E82=\"Hospital\",\"Insert PERK # Here\",IF(E82=\"OCME\",\"N/A\",\"\"))","v":""},null,"",null,"",null,""]
[{"$f":"IF($E$6=\"\",\"\",IF(B83=\"\",\"\",IF($E$6=\"Other (Please Indicate Below)\",$E$7,$E$6)))","v":""},null,null,null,null,{"$f":"IF(E83=\"Hospital\",\"Insert PERK # Here\",IF(E83=\"OCME\",\"N/A\",\"\"))","v":""},null,{"$f":"IF(G83=\"\",\"\",IF(G83=\"Other\",\"Explain Here\",\"N/A\"))","v":""},null,{"$f":"IF(I83=\"\",\"\",IF(I83=\"Other\",\"Explain Here\",\"N/A\"))","v":""},null,{"$f":"IF(K83=\"\",\"\",IF(K83=\"Other\",\"Explain Here\",\"N/A\"))","v":""}]
[{"$f":"IF($E$6=\"\",\"\",IF(B84=\"\",\"\",IF($E$6=\"Other (Please Indicate Below)\",$E$7,$E$6)))","v":""},null,null,null,null,{"$f":"IF(E84=\"Hospital\",\"Insert PERK # Here\",IF(E84=\"OCME\",\"N/A\",\"\"))","v":""},null,"",null,"",null,""]
[{"$f":"IF($E$6=\"\",\"\",IF(B85=\"\",\"\",IF($E$6=\"Other (Please Indicate Below)\",$E$7,$E$6)))","v":""},null,null,null,null,{"$f":"IF(E85=\"Hospital\",\"Insert PERK # Here\",IF(E85=\"OCME\",\"N/A\",\"\"))","v":""},null,"",null,"",null,""]
[{"$f":"IF($E$6=\"\",\"\",IF(B86=\"\",\"\",IF($E$6=\"Other (Please Indicate Below)\",$E$7,$E$6)))","v":""},null,null,null,null,{"$f":"IF(E86=\"Hospital\",\"Insert PERK # Here\",IF(E86=\"OCME\",\"N/A\",\"\"))","v":""},null,"",null,"",null,""]
[{"$f":"IF($E$6=\"\",\"\",IF(B87=\"\",\"\",IF($E$6=\"Other (Please Indicate Below)\",$E$7,$E$6)))","v":""},null,null,null,null,{"$f":"IF(E87=\"Hospital\",\"Insert PERK # Here\",IF(E87=\"OCME\",\"N/A\",\"\"))","v":""},null,"",null,"",null,""]
[{"$f":"IF($E$6=\"\",\"\",IF(B88=\"\",\"\",IF($E$6=\"Other (Please Indicate Below)\",$E$7,$E$6)))","v":""},null,null,null,null,{"$f":"IF(E88=\"Hospital\",\"Insert PERK # Here\",IF(E88=\"OCME\",\"N/A\",\"\"))","v":""},null,"",null,"",null,""]
[{"$f":"IF($E$6=\"\",\"\",IF(B89=\"\",\"\",IF($E$6=\"Other (Please Indicate Below)\",$E$7,$E$6)))","v":""},null,null,null,null,{"$f":"IF(E89=\"Hospital\",\"Insert PERK # Here\",IF(E89=\"OCME\",\"N/A\",\"\"))","v":""},null,"",null,"",null,""]
[{"$f":"IF($E$6=\"\",\"\",IF(B90=\"\",\"\",IF($E$6=\"Other (Please Indicate Below)\",$E$7,$E$6)))","v":""},null,null,null,null,{"$f":"IF(E90=\"Hospital\",\"Insert PERK # Here\",IF(E90=\"OCME\",\"N/A\",\"\"))","v":""},null,"",null,"",null,""]
[{"$f":"IF($E$6=\"\",\"\",IF(B91=\"\",\"\",IF($E$6=\"Other (Please Indicate Below)\",$E$7,$E$6)))","v":""},null,null,null,null,{"$f":"IF(E91=\"Hospital\",\"Insert PERK # Here\",IF(E91=\"OCME\",\"N/A\",\"\"))","v":""},null,"",null,"",null,""]
[{"$f":"IF($E$6=\"\",\"\",IF(B92=\"\",\"\",IF($E$6=\"Other (Please Indicate Below)\",$E$7,$E$6)))","v":""},null,null,null,null,{"$f":"IF(E92=\"Hospital\",\"Insert PERK # Here\",IF(E92=\"OCME\",\"N/A\",\"\"))","v":""},null,"",null,"",null,""]
[{"$f":"IF($E$6=\"\",\"\",IF(B93=\"\",\"\",IF($E$6=\"Other (Please Indicate Below)\",$E$7,$E$6)))","v":""},null,null,null,null,{"$f":"IF(E93=\"Hospital\",\"Insert PERK # Here\",IF(E93=\"OCME\",\"N/A\",\"\"))","v":""},null,"",null,"",null,""]
[{"$f":"IF($E$6=\"\",\"\",IF(B94=\"\",\"\",IF($E$6=\"Other (Please Indicate Below)\",$E$7,$E$6)))","v":""},null,null,null,null,{"$f":"IF(E94=\"Hospital\",\"Insert PERK # Here\",IF(E94=\"OCME\",\"N/A\",\"\"))","v":""},null,"",null,"",null,""]
[{"$f":"IF($E$6=\"\",\"\",IF(B95=\"\",\"\",IF($E$6=\"Other (Please Indicate Below)\",$E$7,$E$6)))","v":""},null,null,null,null,{"$f":"IF(E95=\"Hospital\",\"Insert PERK # Here\",IF(E95=\"OCME\",\"N/A\",\"\"))","v":""},null,"",null,"",null,""]
[{"$f":"IF($E$6=\"\",\"\",IF(B96=\"\",\"\",IF($E$6=\"Other (Please Indicate Below)\",$E$7,$E$6)))","v":""},null,null,null,null,{"$f":"IF(E96=\"Hospital\",\"Insert PERK # Here\",IF(E96=\"OCME\",\"N/A\",\"\"))","v":""},null,"",null,"",null,""]
[{"$f":"IF($E$6=\"\",\"\",IF(B97=\"\",\"\",IF($E$6=\"Other (Please Indicate Below)\",$E$7,$E$6)))","v":""},null,null,null,null,{"$f":"IF(E97=\"Hospital\",\"Insert PERK # Here\",IF(E97=\"OCME\",\"N/A\",\"\"))","v":""},null,"",null,"",null,""]
[{"$f":"IF($E$6=\"\",\"\",IF(B98=\"\",\"\",IF($E$6=\"Other (Please Indicate Below)\",$E$7,$E$6)))","v":""},null,null,null,null,{"$f":"IF(E98=\"Hospital\",\"Insert PERK # Here\",IF(E98=\"OCME\",\"N/A\",\"\"))","v":""},null,"",null,"",null,""]
[{"$f":"IF($E$6=\"\",\"\",IF(B99=\"\",\"\",IF($E$6=\"Other (Please Indicate Below)\",$E$7,$E$6)))","v":""},null,null,null,null,{"$f":"IF(E99=\"Hospital\",\"Insert PERK # Here\",IF(E99=\"OCME\",\"N/A\",\"\"))","v":""},null,"",null,"",null,""]
[{"$f":"IF($E$6=\"\",\"\",IF(B100=\"\",\"\",IF($E$6=\"Other (Please Indicate Below)\",$E$7,$E$6)))","v":""},null,null,null,null,{"$f":"IF(E100=\"Hospital\",\"Insert PERK # Here\",IF(E100=\"OCME\",\"N/A\",\"\"))","v":""},null,"",null,"",null,""]
[{"$f":"IF($E$6=\"\",\"\",IF(B101=\"\",\"\",IF($E$6=\"Other (Please Indicate Below)\",$E$7,$E$6)))","v":""},null,null,null,null,{"$f":"IF(E101=\"Hospital\",\"Insert PERK # Here\",IF(E101=\"OCME\",\"N/A\",\"\"))","v":""},null,"",null,"",null,""]
[{"$f":"IF($E$6=\"\",\"\",IF(B102=\"\",\"\",IF($E$6=\"Other (Please Indicate Below)\",$E$7,$E$6)))","v":""},null,null,null,null,{"$f":"IF(E102=\"Hospital\",\"Insert PERK # Here\",IF(E102=\"OCME\",\"N/A\",\"\"))","v":""},null,"",null,"",null,""]
[{"$f":"IF($E$6=\"\",\"\",IF(B103=\"\",\"\",IF($E$6=\"Other (Please Indicate Below)\",$E$7,$E$6)))","v":""},null,null,null,null,{"$f":"IF(E103=\"Hospital\",\"Insert PERK # Here\",IF(E103=\"OCME\",\"N/A\",\"\"))","v":""},null,"",null,"",null,""]
[{"$f":"IF($E$6=\"\",\"\",IF(B104=\"\",\"\",IF($E$6=\"Other (Please Indicate Below)\",$E$7,$E$6)))","v":""},null,null,null,null,{"$f":"IF(E104=\"Hospital\",\"Insert PERK # Here\",IF(E104=\"OCME\",\"N/A\",\"\"))","v":""},null,"",null,"",null,""]
[{"$f":"IF($E$6=\"\",\"\",IF(B105=\"\",\"\",IF($E$6=\"Other (Please Indicate Below)\",$E$7,$E$6)))","v":""},null,null,null,null,{"$f":"IF(E105=\"Hospital\",\"Insert PERK # Here\",IF(E105=\"OCME\",\"N/A\",\"\"))","v":""},null,"",null,"",null,""]
[{"$f":"IF($E$6=\"\",\"\",IF(B106=\"\",\"\",IF($E$6=\"Other (Please Indicate Below)\",$E$7,$E$6)))","v":""},null,null,null,null,{"$f":"IF(E106=\"Hospital\",\"Insert PERK # Here\",IF(E106=\"OCME\",\"N/A\",\"\"))","v":""},null,"",null,"",null,""]
[{"$f":"IF($E$6=\"\",\"\",IF(B107=\"\",\"\",IF($E$6=\"Other (Please Indicate Below)\",$E$7,$E$6)))","v":""},null,null,null,null,{"$f":"IF(E107=\"Hospital\",\"Insert PERK # Here\",IF(E107=\"OCME\",\"N/A\",\"\"))","v":""},null,"",null,"",null,""]
[{"$f":"IF($E$6=\"\",\"\",IF(B108=\"\",\"\",IF($E$6=\"Other (Please Indicate Below)\",$E$7,$E$6)))","v":""},null,null,null,null,{"$f":"IF(E108=\"Hospital\",\"Insert PERK # Here\",IF(E108=\"OCME\",\"N/A\",\"\"))","v":""},null,"",null,"",null,""]
[{"$f":"IF($E$6=\"\",\"\",IF(B109=\"\",\"\",IF($E$6=\"Other (Please Indicate Below)\",$E$7,$E$6)))","v":""},null,null,null,null,{"$f":"IF(E109=\"Hospital\",\"Insert PERK # Here\",IF(E109=\"OCME\",\"N/A\",\"\"))","v":""},null,"",null,"",null,""]
[{"$f":"IF($E$6=\"\",\"\",IF(B110=\"\",\"\",IF($E$6=\"Other (Please Indicate Below)\",$E$7,$E$6)))","v":""},null,null,null,null,{"$f":"IF(E110=\"Hospital\",\"Insert PERK # Here\",IF(E110=\"OCME\",\"N/A\",\"\"))","v":""},null,"",null,"",null,""]
[{"$f":"IF($E$6=\"\",\"\",IF(B111=\"\",\"\",IF($E$6=\"Other (Please Indicate Below)\",$E$7,$E$6)))","v":""},null,null,null,null,{"$f":"IF(E111=\"Hospital\",\"Insert PERK # Here\",IF(E111=\"OCME\",\"N/A\",\"\"))","v":""},null,"",null,"",null,""]
[{"$f":"IF($E$6=\"\",\"\",IF(B112=\"\",\"\",IF($E$6=\"Other (Please Indicate Below)\",$E$7,$E$6)))","v":""},null,null,null,null,{"$f":"IF(E112=\"Hospital\",\"Insert PERK # Here\",IF(E112=\"OCME\",\"N/A\",\"\"))","v":""},null,"",null,"",null,""]
[{"$f":"IF($E$6=\"\",\"\",IF(B113=\"\",\"\",IF($E$6=\"Other (Please Indicate Below)\",$E$7,$E$6)))","v":""},null,null,null,null,{"$f":"IF(E113=\"Hospital\",\"Insert PERK # Here\",IF(E113=\"OCME\",\"N/A\",\"\"))","v":""},null,"",null,"",null,""]
[{"$f":"IF($E$6=\"\",\"\",IF(B114=\"\",\"\",IF($E$6=\"Other (Please Indicate Below)\",$E$7,$E$6)))","v":""},null,null,null,null,{"$f":"IF(E114=\"Hospital\",\"Insert PERK # Here\",IF(E114=\"OCME\",\"N/A\",\"\"))","v":""},null,"",null,"",null,""]
[{"$f":"IF($E$6=\"\",\"\",IF(B115=\"\",\"\",IF($E$6=\"Other (Please Indicate Below)\",$E$7,$E$6)))","v":""},null,null,null,null,{"$f":"IF(E115=\"Hospital\",\"Insert PERK # Here\",IF(E115=\"OCME\",\"N/A\",\"\"))","v":""},null,"",null,"",null,""]
[{"$f":"IF($E$6=\"\",\"\",IF(B116=\"\",\"\",IF($E$6=\"Other (Please Indicate Below)\",$E$7,$E$6)))","v":""},null,null,null,null,{"$f":"IF(E116=\"Hospital\",\"Insert PERK # Here\",IF(E116=\"OCME\",\"N/A\",\"\"))","v":""},null,"",null,"",null,""]
[{"$f":"IF($E$6=\"\",\"\",IF(B117=\"\",\"\",IF($E$6=\"Other (Please Indicate Below)\",$E$7,$E$6)))","v":""},null,null,null,null,{"$f":"IF(E117=\"Hospital\",\"Insert PERK # Here\",IF(E117=\"OCME\",\"N/A\",\"\"))","v":""},null,"",null,"",null,""]
[{"$f":"IF($E$6=\"\",\"\",IF(B118=\"\",\"\",IF($E$6=\"Other (Please Indicate Below)\",$E$7,$E$6)))","v":""},null,null,null,null,{"$f":"IF(E118=\"Hospital\",\"Insert PERK # Here\",IF(E118=\"OCME\",\"N/A\",\"\"))","v":""},null,"",null,"",null,""]
[{"$f":"IF($E$6=\"\",\"\",IF(B119=\"\",\"\",IF($E$6=\"Other (Please Indicate Below)\",$E$7,$E$6)))","v":""},null,null,null,null,{"$f":"IF(E119=\"Hospital\",\"Insert PERK # Here\",IF(E119=\"OCME\",\"N/A\",\"\"))","v":""},null,"",null,"",null,""]
[{"$f":"IF($E$6=\"\",\"\",IF(B120=\"\",\"\",IF($E$6=\"Other (Please Indicate Below)\",$E$7,$E$6)))","v":""},null,null,null,null,{"$f":"IF(E120=\"Hospital\",\"Insert PERK # Here\",IF(E120=\"OCME\",\"N/A\",\"\"))","v":""},null,"",null,"",null,""]
[{"$f":"IF($E$6=\"\",\"\",IF(B121=\"\",\"\",IF($E$6=\"Other (Please Indicate Below)\",$E$7,$E$6)))","v":""},null,null,null,null,{"$f":"IF(E121=\"Hospital\",\"Insert PERK # Here\",IF(E121=\"OCME\",\"N/A\",\"\"))","v":""},null,"",null,"",null,""]
[{"$f":"IF($E$6=\"\",\"\",IF(B122=\"\",\"\",IF($E$6=\"Other (Please Indicate Below)\",$E$7,$E$6)))","v":""},null,null,null,null,{"$f":"IF(E122=\"Hospital\",\"Insert PERK # Here\",IF(E122=\"OCME\",\"N/A\",\"\"))","v":""},null,"",null,"",null,""]
[{"$f":"IF($E$6=\"\",\"\",IF(B123=\"\",\"\",IF($E$6=\"Other (Please Indicate Below)\",$E$7,$E$6)))","v":""},null,null,null,null,{"$f":"IF(E123=\"Hospital\",\"Insert PERK # Here\",IF(E123=\"OCME\",\"N/A\",\"\"))","v":""},null,"",null,"",null,""]
[{"$f":"IF($E$6=\"\",\"\",IF(B124=\"\",\"\",IF($E$6=\"Other (Please Indicate Below)\",$E$7,$E$6)))","v":""},null,null,null,null,{"$f":"IF(E124=\"Hospital\",\"Insert PERK # Here\",IF(E124=\"OCME\",\"N/A\",\"\"))","v":""},null,"",null,"",null,""]
[{"$f":"IF($E$6=\"\",\"\",IF(B125=\"\",\"\",IF($E$6=\"Other (Please Indicate Below)\",$E$7,$E$6)))","v":""},null,null,null,null,{"$f":"IF(E125=\"Hospital\",\"Insert PERK # Here\",IF(E125=\"OCME\",\"N/A\",\"\"))","v":""},null,"",null,"",null,""]
[{"$f":"IF($E$6=\"\",\"\",IF(B126=\"\",\"\",IF($E$6=\"Other (Please Indicate Below)\",$E$7,$E$6)))","v":""},null,null,null,null,{"$f":"IF(E126=\"Hospital\",\"Insert PERK # Here\",IF(E126=\"OCME\",\"N/A\",\"\"))","v":""},null,"",null,"",null,""]
[{"$f":"IF($E$6=\"\",\"\",IF(B127=\"\",\"\",IF($E$6=\"Other (Please Indicate Below)\",$E$7,$E$6)))","v":""},null,null,null,null,{"$f":"IF(E127=\"Hospital\",\"Insert PERK # Here\",IF(E127=\"OCME\",\"N/A\",\"\"))","v":""},null,"",null,"",null,""]
[{"$f":"IF($E$6=\"\",\"\",IF(B128=\"\",\"\",IF($E$6=\"Other (Please Indicate Below)\",$E$7,$E$6)))","v":""},null,null,null,null,{"$f":"IF(E128=\"Hospital\",\"Insert PERK # Here\",IF(E128=\"OCME\",\"N/A\",\"\"))","v":""},null,"",null,"",null,""]
[{"$f":"IF($E$6=\"\",\"\",IF(B129=\"\",\"\",IF($E$6=\"Other (Please Indicate Below)\",$E$7,$E$6)))","v":""},null,null,null,null,{"$f":"IF(E129=\"Hospital\",\"Insert PERK # Here\",IF(E129=\"OCME\",\"N/A\",\"\"))","v":""},null,"",null,"",null,""]
[{"$f":"IF($E$6=\"\",\"\",IF(B130=\"\",\"\",IF($E$6=\"Other (Please Indicate Below)\",$E$7,$E$6)))","v":""},null,null,null,null,{"$f":"IF(E130=\"Hospital\",\"Insert PERK # Here\",IF(E130=\"OCME\",\"N/A\",\"\"))","v":""},null,"",null,"",null,""]
[{"$f":"IF($E$6=\"\",\"\",IF(B131=\"\",\"\",IF($E$6=\"Other (Please Indicate Below)\",$E$7,$E$6)))","v":""},null,null,null,null,{"$f":"IF(E131=\"Hospital\",\"Insert PERK # Here\",IF(E131=\"OCME\",\"N/A\",\"\"))","v":""},null,"",null,"",null,""]
[{"$f":"IF($E$6=\"\",\"\",IF(B132=\"\",\"\",IF($E$6=\"Other (Please Indicate Below)\",$E$7,$E$6)))","v":""},null,null,null,null,{"$f":"IF(E132=\"Hospital\",\"Insert PERK # Here\",IF(E132=\"OCME\",\"N/A\",\"\"))","v":""},null,"",null,"",null,""]
[{"$f":"IF($E$6=\"\",\"\",IF(B133=\"\",\"\",IF($E$6=\"Other (Please Indicate Below)\",$E$7,$E$6)))","v":""},null,null,null,null,{"$f":"IF(E133=\"Hospital\",\"Insert PERK # Here\",IF(E133=\"OCME\",\"N/A\",\"\"))","v":""},null,"",null,"",null,""]
[{"$f":"IF($E$6=\"\",\"\",IF(B134=\"\",\"\",IF($E$6=\"Other (Please Indicate Below)\",$E$7,$E$6)))","v":""},null,null,null,null,{"$f":"IF(E134=\"Hospital\",\"Insert PERK # Here\",IF(E134=\"OCME\",\"N/A\",\"\"))","v":""},null,"",null,"",null,""]
[{"$f":"IF($E$6=\"\",\"\",IF(B135=\"\",\"\",IF($E$6=\"Other (Please Indicate Below)\",$E$7,$E$6)))","v":""},null,null,null,null,{"$f":"IF(E135=\"Hospital\",\"Insert PERK # Here\",IF(E135=\"OCME\",\"N/A\",\"\"))","v":""},null,"",null,"",null,""]
[{"$f":"IF($E$6=\"\",\"\",IF(B136=\"\",\"\",IF($E$6=\"Other (Please Indicate Below)\",$E$7,$E$6)))","v":""},null,null,null,null,{"$f":"IF(E136=\"Hospital\",\"Insert PERK # Here\",IF(E136=\"OCME\",\"N/A\",\"\"))","v":""},null,"",null,"",null,""]
[{"$f":"IF($E$6=\"\",\"\",IF(B137=\"\",\"\",IF($E$6=\"Other (Please Indicate Below)\",$E$7,$E$6)))","v":""},null,null,null,null,{"$f":"IF(E137=\"Hospital\",\"Insert PERK # Here\",IF(E137=\"OCME\",\"N/A\",\"\"))","v":""},null,"",null,"",null,""]
[{"$f":"IF($E$6=\"\",\"\",IF(B138=\"\",\"\",IF($E$6=\"Other (Please Indicate Below)\",$E$7,$E$6)))","v":""},null,null,null,null,{"$f":"IF(E138=\"Hospital\",\"Insert PERK # Here\",IF(E138=\"OCME\",\"N/A\",\"\"))","v":""},null,"",null,"",null,""]
[{"$f":"IF($E$6=\"\",\"\",IF(B139=\"\",\"\",IF($E$6=\"Other (Please Indicate Below)\",$E$7,$E$6)))","v":""},null,null,null,null,{"$f":"IF(E139=\"Hospital\",\"Insert PERK # Here\",IF(E139=\"OCME\",\"N/A\",\"\"))","v":""},null,"",null,"",null,""]
[{"$f":"IF($E$6=\"\",\"\",IF(B140=\"\",\"\",IF($E$6=\"Other (Please Indicate Below)\",$E$7,$E$6)))","v":""},null,null,null,null,{"$f":"IF(E140=\"Hospital\",\"Insert PERK # Here\",IF(E140=\"OCME\",\"N/A\",\"\"))","v":""},null,"",null,"",null,""]
[{"$f":"IF($E$6=\"\",\"\",IF(B141=\"\",\"\",IF($E$6=\"Other (Please Indicate Below)\",$E$7,$E$6)))","v":""},null,null,null,null,{"$f":"IF(E141=\"Hospital\",\"Insert PERK # Here\",IF(E141=\"OCME\",\"N/A\",\"\"))","v":""},null,"",null,"",null,""]
[{"$f":"IF($E$6=\"\",\"\",IF(B142=\"\",\"\",IF($E$6=\"Other (Please Indicate Below)\",$E$7,$E$6)))","v":""},null,null,null,null,{"$f":"IF(E142=\"Hospital\",\"Insert PERK # Here\",IF(E142=\"OCME\",\"N/A\",\"\"))","v":""},null,"",null,"",null,""]
[{"$f":"IF($E$6=\"\",\"\",IF(B143=\"\",\"\",IF($E$6=\"Other (Please Indicate Below)\",$E$7,$E$6)))","v":""},null,null,null,null,{"$f":"IF(E143=\"Hospital\",\"Insert PERK # Here\",IF(E143=\"OCME\",\"N/A\",\"\"))","v":""},null,"",null,"",null,""]
[{"$f":"IF($E$6=\"\",\"\",IF(B144=\"\",\"\",IF($E$6=\"Other (Please Indicate Below)\",$E$7,$E$6)))","v":""},null,null,null,null,{"$f":"IF(E144=\"Hospital\",\"Insert PERK # Here\",IF(E144=\"OCME\",\"N/A\",\"\"))","v":""},null,"",null,"",null,""]
[{"$f":"IF($E$6=\"\",\"\",IF(B145=\"\",\"\",IF($E$6=\"Other (Please Indicate Below)\",$E$7,$E$6)))","v":""},null,null,null,null,{"$f":"IF(E145=\"Hospital\",\"Insert PERK # Here\",IF(E145=\"OCME\",\"N/A\",\"\"))","v":""},null,"",null,"",null,""]
[{"$f":"IF($E$6=\"\",\"\",IF(B146=\"\",\"\",IF($E$6=\"Other (Please Indicate Below)\",$E$7,$E$6)))","v":""},null,null,null,null,{"$f":"IF(E146=\"Hospital\",\"Insert PERK # Here\",IF(E146=\"OCME\",\"N/A\",\"\"))","v":""},null,"",null,"",null,""]
[{"$f":"IF($E$6=\"\",\"\",IF(B147=\"\",\"\",IF($E$6=\"Other (Please Indicate Below)\",$E$7,$E$6)))","v":""},null,null,null,null,{"$f":"IF(E147=\"Hospital\",\"Insert PERK # Here\",IF(E147=\"OCME\",\"N/A\",\"\"))","v":""},null,{"$f":"IF(G147=\"\",\"\",IF(G147=\"Other\",\"Explain Here\",\"N/A\"))","v":""},null,{"$f":"IF(I147=\"\",\"\",IF(I147=\"Other\",\"Explain Here\",\"N/A\"))","v":""},null,{"$f":"IF(K147=\"\",\"\",IF(K147=\"Other\",\"Explain Here\",\"N/A\"))","v":""}]
[{"$f":"IF($E$6=\"\",\"\",IF(B148=\"\",\"\",IF($E$6=\"Other (Please Indicate Below)\",$E$7,$E$6)))","v":""},null,null,null,null,{"$f":"IF(E148=\"Hospital\",\"Insert PERK # Here\",IF(E148=\"OCME\",\"N/A\",\"\"))","v":""},null,"",null,"",null,""]
[{"$f":"IF($E$6=\"\",\"\",IF(B149=\"\",\"\",IF($E$6=\"Other (Please Indicate Below)\",$E$7,$E$6)))","v":""},null,null,null,null,{"$f":"IF(E149=\"Hospital\",\"Insert PERK # Here\",IF(E149=\"OCME\",\"N/A\",\"\"))","v":""},null,"",null,"",null,""]
[{"$f":"IF($E$6=\"\",\"\",IF(B150=\"\",\"\",IF($E$6=\"Other (Please Indicate Below)\",$E$7,$E$6)))","v":""},null,null,null,null,{"$f":"IF(E150=\"Hospital\",\"Insert PERK # Here\",IF(E150=\"OCME\",\"N/A\",\"\"))","v":""},null,"",null,"",null,""]
[{"$f":"IF($E$6=\"\",\"\",IF(B151=\"\",\"\",IF($E$6=\"Other (Please Indicate Below)\",$E$7,$E$6)))","v":""},null,null,null,null,{"$f":"IF(E151=\"Hospital\",\"Insert PERK # Here\",IF(E151=\"OCME\",\"N/A\",\"\"))","v":""},null,"",null,"",null,""]
[{"$f":"IF($E$6=\"\",\"\",IF(B152=\"\",\"\",IF($E$6=\"Other (Please Indicate Below)\",$E$7,$E$6)))","v":""},null,null,null,null,{"$f":"IF(E152=\"Hospital\",\"Insert PERK # Here\",IF(E152=\"OCME\",\"N/A\",\"\"))","v":""},null,"",null,"",null,""]
[{"$f":"IF($E$6=\"\",\"\",IF(B153=\"\",\"\",IF($E$6=\"Other (Please Indicate Below)\",$E$7,$E$6)))","v":""},null,null,null,null,{"$f":"IF(E153=\"Hospital\",\"Insert PERK # Here\",IF(E153=\"OCME\",\"N/A\",\"\"))","v":""},null,"",null,"",null,""]
[{"$f":"IF($E$6=\"\",\"\",IF(B154=\"\",\"\",IF($E$6=\"Other (Please Indicate Below)\",$E$7,$E$6)))","v":""},null,null,null,null,{"$f":"IF(E154=\"Hospital\",\"Insert PERK # Here\",IF(E154=\"OCME\",\"N/A\",\"\"))","v":""},null,"",null,"",null,""]
[{"$f":"IF($E$6=\"\",\"\",IF(B155=\"\",\"\",IF($E$6=\"Other (Please Indicate Below)\",$E$7,$E$6)))","v":""},null,null,null,null,{"$f":"IF(E155=\"Hospital\",\"Insert PERK # Here\",IF(E155=\"OCME\",\"N/A\",\"\"))","v":""},null,"",null,"",null,""]
[{"$f":"IF($E$6=\"\",\"\",IF(B156=\"\",\"\",IF($E$6=\"Other (Please Indicate Below)\",$E$7,$E$6)))","v":""},null,null,null,null,{"$f":"IF(E156=\"Hospital\",\"Insert PERK # Here\",IF(E156=\"OCME\",\"N/A\",\"\"))","v":""},null,"",null,"",null,""]
[{"$f":"IF($E$6=\"\",\"\",IF(B157=\"\",\"\",IF($E$6=\"Other (Please Indicate Below)\",$E$7,$E$6)))","v":""},null,null,null,null,{"$f":"IF(E157=\"Hospital\",\"Insert PERK # Here\",IF(E157=\"OCME\",\"N/A\",\"\"))","v":""},null,"",null,"",null,""]
[{"$f":"IF($E$6=\"\",\"\",IF(B158=\"\",\"\",IF($E$6=\"Other (Please Indicate Below)\",$E$7,$E$6)))","v":""},null,null,null,null,{"$f":"IF(E158=\"Hospital\",\"Insert PERK # Here\",IF(E158=\"OCME\",\"N/A\",\"\"))","v":""},null,"",null,"",null,""]
[{"$f":"IF($E$6=\"\",\"\",IF(B159=\"\",\"\",IF($E$6=\"Other (Please Indicate Below)\",$E$7,$E$6)))","v":""},null,null,null,null,{"$f":"IF(E159=\"Hospital\",\"Insert PERK # Here\",IF(E159=\"OCME\",\"N/A\",\"\"))","v":""},null,"",null,"",null,""]
[{"$f":"IF($E$6=\"\",\"\",IF(B160=\"\",\"\",IF($E$6=\"Other (Please Indicate Below)\",$E$7,$E$6)))","v":""},null,null,null,null,{"$f":"IF(E160=\"Hospital\",\"Insert PERK # Here\",IF(E160=\"OCME\",\"N/A\",\"\"))","v":""},null,"",null,"",null,""]
[{"$f":"IF($E$6=\"\",\"\",IF(B161=\"\",\"\",IF($E$6=\"Other (Please Indicate Below)\",$E$7,$E$6)))","v":""},null,null,null,null,{"$f":"IF(E161=\"Hospital\",\"Insert PERK # Here\",IF(E161=\"OCME\",\"N/A\",\"\"))","v":""},null,"",null,"",null,""]
[{"$f":"IF($E$6=\"\",\"\",IF(B162=\"\",\"\",IF($E$6=\"Other (Please Indicate Below)\",$E$7,$E$6)))","v":""},null,null,null,null,{"$f":"IF(E162=\"Hospital\",\"Insert PERK # Here\",IF(E162=\"OCME\",\"N/A\",\"\"))","v":""},null,"",null,"",null,""]
[{"$f":"IF($E$6=\"\",\"\",IF(B163=\"\",\"\",IF($E$6=\"Other (Please Indicate Below)\",$E$7,$E$6)))","v":""},null,null,null,null,{"$f":"IF(E163=\"Hospital\",\"Insert PERK # Here\",IF(E163=\"OCME\",\"N/A\",\"\"))","v":""},null,"",null,"",null,""]
[{"$f":"IF($E$6=\"\",\"\",IF(B164=\"\",\"\",IF($E$6=\"Other (Please Indicate Below)\",$E$7,$E$6)))","v":""},null,null,null,null,{"$f":"IF(E164=\"Hospital\",\"Insert PERK # Here\",IF(E164=\"OCME\",\"N/A\",\"\"))","v":""},null,"",null,"",null,""]
[{"$f":"IF($E$6=\"\",\"\",IF(B165=\"\",\"\",IF($E$6=\"Other (Please Indicate Below)\",$E$7,$E$6)))","v":""},null,null,null,null,{"$f":"IF(E165=\"Hospital\",\"Insert PERK # Here\",IF(E165=\"OCME\",\"N/A\",\"\"))","v":""},null,"",null,"",null,""]
[{"$f":"IF($E$6=\"\",\"\",IF(B166=\"\",\"\",IF($E$6=\"Other (Please Indicate Below)\",$E$7,$E$6)))","v":""},null,null,null,null,{"$f":"IF(E166=\"Hospital\",\"Insert PERK # Here\",IF(E166=\"OCME\",\"N/A\",\"\"))","v":""},null,"",null,"",null,""]
[{"$f":"IF($E$6=\"\",\"\",IF(B167=\"\",\"\",IF($E$6=\"Other (Please Indicate Below)\",$E$7,$E$6)))","v":""},null,null,null,null,{"$f":"IF(E167=\"Hospital\",\"Insert PERK # Here\",IF(E167=\"OCME\",\"N/A\",\"\"))","v":""},null,"",null,"",null,""]
[{"$f":"IF($E$6=\"\",\"\",IF(B168=\"\",\"\",IF($E$6=\"Other (Please Indicate Below)\",$E$7,$E$6)))","v":""},null,null,null,null,{"$f":"IF(E168=\"Hospital\",\"Insert PERK # Here\",IF(E168=\"OCME\",\"N/A\",\"\"))","v":""},null,"",null,"",null,""]
[{"$f":"IF($E$6=\"\",\"\",IF(B169=\"\",\"\",IF($E$6=\"Other (Please Indicate Below)\",$E$7,$E$6)))","v":""},null,null,null,null,{"$f":"IF(E169=\"Hospital\",\"Insert PERK # Here\",IF(E169=\"OCME\",\"N/A\",\"\"))","v":""},null,"",null,"",null,""]
[{"$f":"IF($E$6=\"\",\"\",IF(B170=\"\",\"\",IF($E$6=\"Other (Please Indicate Below)\",$E$7,$E$6)))","v":""},null,null,null,null,{"$f":"IF(E170=\"Hospital\",\"Insert PERK # Here\",IF(E170=\"OCME\",\"N/A\",\"\"))","v":""},null,"",null,"",null,""]
[{"$f":"IF($E$6=\"\",\"\",IF(B171=\"\",\"\",IF($E$6=\"Other (Please Indicate Below)\",$E$7,$E$6)))","v":""},null,null,null,null,{"$f":"IF(E171=\"Hospital\",\"Insert PERK # Here\",IF(E171=\"OCME\",\"N/A\",\"\"))","v":""},null,"",null,"",null,""]
[{"$f":"IF($E$6=\"\",\"\",IF(B172=\"\",\"\",IF($E$6=\"Other (Please Indicate Below)\",$E$7,$E$6)))","v":""},null,null,null,null,{"$f":"IF(E172=\"Hospital\",\"Insert PERK # Here\",IF(E172=\"OCME\",\"N/A\",\"\"))","v":""},null,"",null,"",null,""]
[{"$f":"IF($E$6=\"\",\"\",IF(B173=\"\",\"\",IF($E$6=\"Other (Please Indicate Below)\",$E$7,$E$6)))","v":""},null,null,null,null,{"$f":"IF(E173=\"Hospital\",\"Insert PERK # Here\",IF(E173=\"OCME\",\"N/A\",\"\"))","v":""},null,"",null,"",null,""]
[{"$f":"IF($E$6=\"\",\"\",IF(B174=\"\",\"\",IF($E$6=\"Other (Please Indicate Below)\",$E$7,$E$6)))","v":""},null,null,null,null,{"$f":"IF(E174=\"Hospital\",\"Insert PERK # Here\",IF(E174=\"OCME\",\"N/A\",\"\"))","v":""},null,"",null,"",null,""]
[{"$f":"IF($E$6=\"\",\"\",IF(B175=\"\",\"\",IF($E$6=\"Other (Please Indicate Below)\",$E$7,$E$6)))","v":""},null,null,null,null,{"$f":"IF(E175=\"Hospital\",\"Insert PERK # Here\",IF(E175=\"OCME\",\"N/A\",\"\"))","v":""},null,"",null,"",null,""]
[{"$f":"IF($E$6=\"\",\"\",IF(B176=\"\",\"\",IF($E$6=\"Other (Please Indicate Below)\",$E$7,$E$6)))","v":""},null,null,null,null,{"$f":"IF(E176=\"Hospital\",\"Insert PERK # Here\",IF(E176=\"OCME\",\"N/A\",\"\"))","v":""},null,"",null,"",null,""]
[{"$f":"IF($E$6=\"\",\"\",IF(B177=\"\",\"\",IF($E$6=\"Other (Please Indicate Below)\",$E$7,$E$6)))","v":""},null,null,null,null,{"$f":"IF(E177=\"Hospital\",\"Insert PERK # Here\",IF(E177=\"OCME\",\"N/A\",\"\"))","v":""},null,"",null,"",null,""]
[{"$f":"IF($E$6=\"\",\"\",IF(B178=\"\",\"\",IF($E$6=\"Other (Please Indicate Below)\",$E$7,$E$6)))","v":""},null,null,null,null,{"$f":"IF(E178=\"Hospital\",\"Insert PERK # Here\",IF(E178=\"OCME\",\"N/A\",\"\"))","v":""},null,"",null,"",null,""]
[{"$f":"IF($E$6=\"\",\"\",IF(B179=\"\",\"\",IF($E$6=\"Other (Please Indicate Below)\",$E$7,$E$6)))","v":""},null,null,null,null,{"$f":"IF(E179=\"Hospital\",\"Insert PERK # Here\",IF(E179=\"OCME\",\"N/A\",\"\"))","v":""},null,"",null,"",null,""]
[{"$f":"IF($E$6=\"\",\"\",IF(B180=\"\",\"\",IF($E$6=\"Other (Please Indicate Below)\",$E$7,$E$6)))","v":""},null,null,null,null,{"$f":"IF(E180=\"Hospital\",\"Insert PERK # Here\",IF(E180=\"OCME\",\"N/A\",\"\"))","v":""},null,"",null,"",null,""]
[{"$f":"IF($E$6=\"\",\"\",IF(B181=\"\",\"\",IF($E$6=\"Other (Please Indicate Below)\",$E$7,$E$6)))","v":""},null,null,null,null,{"$f":"IF(E181=\"Hospital\",\"Insert PERK # Here\",IF(E181=\"OCME\",\"N/A\",\"\"))","v":""},null,"",null,"",null,""]
[{"$f":"IF($E$6=\"\",\"\",IF(B182=\"\",\"\",IF($E$6=\"Other (Please Indicate Below)\",$E$7,$E$6)))","v":""},null,null,null,null,{"$f":"IF(E182=\"Hospital\",\"Insert PERK # Here\",IF(E182=\"OCME\",\"N/A\",\"\"))","v":""},null,"",null,"",null,""]
[{"$f":"IF($E$6=\"\",\"\",IF(B183=\"\",\"\",IF($E$6=\"Other (Please Indicate Below)\",$E$7,$E$6)))","v":""},null,null,null,null,{"$f":"IF(E183=\"Hospital\",\"Insert PERK # Here\",IF(E183=\"OCME\",\"N/A\",\"\"))","v":""},null,"",null,"",null,""]
[{"$f":"IF($E$6=\"\",\"\",IF(B184=\"\",\"\",IF($E$6=\"Other (Please Indicate Below)\",$E$7,$E$6)))","v":""},null,null,null,null,{"$f":"IF(E184=\"Hospital\",\"Insert PERK # Here\",IF(E184=\"OCME\",\"N/A\",\"\"))","v":""},null,"",null,"",null,""]
[{"$f":"IF($E$6=\"\",\"\",IF(B185=\"\",\"\",IF($E$6=\"Other (Please Indicate Below)\",$E$7,$E$6)))","v":""},null,null,null,null,{"$f":"IF(E185=\"Hospital\",\"Insert PERK # Here\",IF(E185=\"OCME\",\"N/A\",\"\"))","v":""},null,"",null,"",null,""]
[{"$f":"IF($E$6=\"\",\"\",IF(B186=\"\",\"\",IF($E$6=\"Other (Please Indicate Below)\",$E$7,$E$6)))","v":""},null,null,null,null,{"$f":"IF(E186=\"Hospital\",\"Insert PERK # Here\",IF(E186=\"OCME\",\"N/A\",\"\"))","v":""},null,"",null,"",null,""]
[{"$f":"IF($E$6=\"\",\"\",IF(B187=\"\",\"\",IF($E$6=\"Other (Please Indicate Below)\",$E$7,$E$6)))","v":""},null,null,null,null,{"$f":"IF(E187=\"Hospital\",\"Insert PERK # Here\",IF(E187=\"OCME\",\"N/A\",\"\"))","v":""},null,"",null,"",null,""]
[{"$f":"IF($E$6=\"\",\"\",IF(B188=\"\",\"\",IF($E$6=\"Other (Please Indicate Below)\",$E$7,$E$6)))","v":""},null,null,null,null,{"$f":"IF(E188=\"Hospital\",\"Insert PERK # Here\",IF(E188=\"OCME\",\"N/A\",\"\"))","v":""},null,"",null,"",null,""]
[{"$f":"IF($E$6=\"\",\"\",IF(B189=\"\",\"\",IF($E$6=\"Other (Please Indicate Below)\",$E$7,$E$6)))","v":""},null,null,null,null,{"$f":"IF(E189=\"Hospital\",\"Insert PERK # Here\",IF(E189=\"OCME\",\"N/A\",\"\"))","v":""},null,"",null,"",null,""]
[{"$f":"IF($E$6=\"\",\"\",IF(B190=\"\",\"\",IF($E$6=\"Other (Please Indicate Below)\",$E$7,$E$6)))","v":""},null,null,null,null,{"$f":"IF(E190=\"Hospital\",\"Insert PERK # Here\",IF(E190=\"OCME\",\"N/A\",\"\"))","v":""},null,"",null,"",null,""]
[{"$f":"IF($E$6=\"\",\"\",IF(B191=\"\",\"\",IF($E$6=\"Other (Please Indicate Below)\",$E$7,$E$6)))","v":""},null,null,null,null,{"$f":"IF(E191=\"Hospital\",\"Insert PERK # Here\",IF(E191=\"OCME\",\"N/A\",\"\"))","v":""},null,"",null,"",null,""]
[{"$f":"IF($E$6=\"\",\"\",IF(B192=\"\",\"\",IF($E$6=\"Other (Please Indicate Below)\",$E$7,$E$6)))","v":""},null,null,null,null,{"$f":"IF(E192=\"Hospital\",\"Insert PERK # Here\",IF(E192=\"OCME\",\"N/A\",\"\"))","v":""},null,"",null,"",null,""]
[{"$f":"IF($E$6=\"\",\"\",IF(B193=\"\",\"\",IF($E$6=\"Other (Please Indicate Below)\",$E$7,$E$6)))","v":""},null,null,null,null,{"$f":"IF(E193=\"Hospital\",\"Insert PERK # Here\",IF(E193=\"OCME\",\"N/A\",\"\"))","v":""},null,"",null,"",null,""]
[{"$f":"IF($E$6=\"\",\"\",IF(B194=\"\",\"\",IF($E$6=\"Other (Please Indicate Below)\",$E$7,$E$6)))","v":""},null,null,null,null,{"$f":"IF(E194=\"Hospital\",\"Insert PERK # Here\",IF(E194=\"OCME\",\"N/A\",\"\"))","v":""},null,"",null,"",null,""]
[{"$f":"IF($E$6=\"\",\"\",IF(B195=\"\",\"\",IF($E$6=\"Other (Please Indicate Below)\",$E$7,$E$6)))","v":""},null,null,null,null,{"$f":"IF(E195=\"Hospital\",\"Insert PERK # Here\",IF(E195=\"OCME\",\"N/A\",\"\"))","v":""},null,"",null,"",null,""]
[{"$f":"IF($E$6=\"\",\"\",IF(B196=\"\",\"\",IF($E$6=\"Other (Please Indicate Below)\",$E$7,$E$6)))","v":""},null,null,null,null,{"$f":"IF(E196=\"Hospital\",\"Insert PERK # Here\",IF(E196=\"OCME\",\"N/A\",\"\"))","v":""},null,"",null,"",null,""]
[{"$f":"IF($E$6=\"\",\"\",IF(B197=\"\",\"\",IF($E$6=\"Other (Please Indicate Below)\",$E$7,$E$6)))","v":""},null,null,null,null,{"$f":"IF(E197=\"Hospital\",\"Insert PERK # Here\",IF(E197=\"OCME\",\"N/A\",\"\"))","v":""},null,"",null,"",null,""]
[{"$f":"IF($E$6=\"\",\"\",IF(B198=\"\",\"\",IF($E$6=\"Other (Please Indicate Below)\",$E$7,$E$6)))","v":""},null,null,null,null,{"$f":"IF(E198=\"Hospital\",\"Insert PERK # Here\",IF(E198=\"OCME\",\"N/A\",\"\"))","v":""},null,"",null,"",null,""]
[{"$f":"IF($E$6=\"\",\"\",IF(B199=\"\",\"\",IF($E$6=\"Other (Please Indicate Below)\",$E$7,$E$6)))","v":""},null,null,null,null,{"$f":"IF(E199=\"Hospital\",\"Insert PERK # Here\",IF(E199=\"OCME\",\"N/A\",\"\"))","v":""},null,"",null,"",null,""]
[{"$f":"IF($E$6=\"\",\"\",IF(B200=\"\",\"\",IF($E$6=\"Other (Please Indicate Below)\",$E$7,$E$6)))","v":""},null,null,null,null,{"$f":"IF(E200=\"Hospital\",\"Insert PERK # Here\",IF(E200=\"OCME\",\"N/A\",\"\"))","v":""},null,"",null,"",null,""]
[{"$f":"IF($E$6=\"\",\"\",IF(B201=\"\",\"\",IF($E$6=\"Other (Please Indicate Below)\",$E$7,$E$6)))","v":""},null,null,null,null,{"$f":"IF(E201=\"Hospital\",\"Insert PERK # Here\",IF(E201=\"OCME\",\"N/A\",\"\"))","v":""},null,"",null,"",null,""]
[{"$f":"IF($E$6=\"\",\"\",IF(B202=\"\",\"\",IF($E$6=\"Other (Please Indicate Below)\",$E$7,$E$6)))","v":""},null,null,null,null,{"$f":"IF(E202=\"Hospital\",\"Insert PERK # Here\",IF(E202=\"OCME\",\"N/A\",\"\"))","v":""},null,"",null,"",null,""]
[{"$f":"IF($E$6=\"\",\"\",IF(B203=\"\",\"\",IF($E$6=\"Other (Please Indicate Below)\",$E$7,$E$6)))","v":""},null,null,null,null,{"$f":"IF(E203=\"Hospital\",\"Insert PERK # Here\",IF(E203=\"OCME\",\"N/A\",\"\"))","v":""},null,"",null,"",null,""]
[{"$f":"IF($E$6=\"\",\"\",IF(B204=\"\",\"\",IF($E$6=\"Other (Please Indicate Below)\",$E$7,$E$6)))","v":""},null,null,null,null,{"$f":"IF(E204=\"Hospital\",\"Insert PERK # Here\",IF(E204=\"OCME\",\"N/A\",\"\"))","v":""},null,"",null,"",null,""]
[{"$f":"IF($E$6=\"\",\"\",IF(B205=\"\",\"\",IF($E$6=\"Other (Please Indicate Below)\",$E$7,$E$6)))","v":""},null,null,null,null,{"$f":"IF(E205=\"Hospital\",\"Insert PERK # Here\",IF(E205=\"OCME\",\"N/A\",\"\"))","v":""},null,"",null,"",null,""]
[{"$f":"IF($E$6=\"\",\"\",IF(B206=\"\",\"\",IF($E$6=\"Other (Please Indicate Below)\",$E$7,$E$6)))","v":""},null,null,null,null,{"$f":"IF(E206=\"Hospital\",\"Insert PERK # Here\",IF(E206=\"OCME\",\"N/A\",\"\"))","v":""},null,"",null,"",null,""]
[{"$f":"IF($E$6=\"\",\"\",IF(B207=\"\",\"\",IF($E$6=\"Other (Please Indicate Below)\",$E$7,$E$6)))","v":""},null,null,null,null,{"$f":"IF(E207=\"Hospital\",\"Insert PERK # Here\",IF(E207=\"OCME\",\"N/A\",\"\"))","v":""},null,"",null,"",null,""]
[{"$f":"IF($E$6=\"\",\"\",IF(B208=\"\",\"\",IF($E$6=\"Other (Please Indicate Below)\",$E$7,$E$6)))","v":""},null,null,null,null,{"$f":"IF(E208=\"Hospital\",\"Insert PERK # Here\",IF(E208=\"OCME\",\"N/A\",\"\"))","v":""},null,"",null,"",null,""]
[{"$f":"IF($E$6=\"\",\"\",IF(B209=\"\",\"\",IF($E$6=\"Other (Please Indicate Below)\",$E$7,$E$6)))","v":""},null,null,null,null,{"$f":"IF(E209=\"Hospital\",\"Insert PERK # Here\",IF(E209=\"OCME\",\"N/A\",\"\"))","v":""},null,"",null,"",null,""]
[{"$f":"IF($E$6=\"\",\"\",IF(B210=\"\",\"\",IF($E$6=\"Other (Please Indicate Below)\",$E$7,$E$6)))","v":""},null,null,null,null,{"$f":"IF(E210=\"Hospital\",\"Insert PERK # Here\",IF(E210=\"OCME\",\"N/A\",\"\"))","v":""},null,"",null,"",null,""]
[{"$f":"IF($E$6=\"\",\"\",IF(B211=\"\",\"\",IF($E$6=\"Other (Please Indicate Below)\",$E$7,$E$6)))","v":""},null,null,null,null,{"$f":"IF(E211=\"Hospital\",\"Insert PERK # Here\",IF(E211=\"OCME\",\"N/A\",\"\"))","v":""},null,{"$f":"IF(G211=\"\",\"\",IF(G211=\"Other\",\"Explain Here\",\"N/A\"))","v":""},null,{"$f":"IF(I211=\"\",\"\",IF(I211=\"Other\",\"Explain Here\",\"N/A\"))","v":""},null,{"$f":"IF(K211=\"\",\"\",IF(K211=\"Other\",\"Explain Here\",\"N/A\"))","v":""}]
[{"$f":"IF($E$6=\"\",\"\",IF(B212=\"\",\"\",IF($E$6=\"Other (Please Indicate Below)\",$E$7,$E$6)))","v":""},null,null,null,null,{"$f":"IF(E212=\"Hospital\",\"Insert PERK # Here\",IF(E212=\"OCME\",\"N/A\",\"\"))","v":""},null,"",null,"",null,""]
[{"$f":"IF($E$6=\"\",\"\",IF(B213=\"\",\"\",IF($E$6=\"Other (Please Indicate Below)\",$E$7,$E$6)))","v":""},null,null,null,null,{"$f":"IF(E213=\"Hospital\",\"Insert PERK # Here\",IF(E213=\"OCME\",\"N/A\",\"\"))","v":""},null,"",null,"",null,""]
[null,null,null,null,null,{"$f":"IF(E214=\"Hospital\",\"Insert PERK # Here\",IF(E214=\"OCME\",\"N/A\",\"\"))","v":""},null,{"$f":"IF(G214=\"\",\"\",IF(G214=\"Other\",\"Explain Here\",\"N/A\"))","v":""},null,{"$f":"IF(I214=\"\",\"\",IF(I214=\"Other\",\"Explain Here\",\"N/A\"))","v":""},null,{"$f":"IF(K214=\"\",\"\",IF(K214=\"Other\",\"Explain Here\",\"N/A\"))","v":""}]
[null,null,null,null,null,{"$f":"IF(E215=\"Hospital\",\"Insert PERK # Here\",IF(E215=\"OCME\",\"N/A\",\"\"))","v":""},null,"",null,"",null,""]
[null,null,null,null,null,{"$f":"IF(E216=\"Hospital\",\"Insert PERK # Here\",IF(E216=\"OCME\",\"N/A\",\"\"))","v":""},null,"",null,"",null,""]
[null,null,null,null,null,{"$f":"IF(E217=\"Hospital\",\"Insert PERK # Here\",IF(E217=\"OCME\",\"N/A\",\"\"))","v":""},null,"",null,"",null,""]
[null,null,null,null,null,{"$f":"IF(E218=\"Hospital\",\"Insert PERK # Here\",IF(E218=\"OCME\",\"N/A\",\"\"))","v":""},null,"",null,"",null,""]
[null,null,null,null,null,{"$f":"IF(E219=\"Hospital\",\"Insert PERK # Here\",IF(E219=\"OCME\",\"N/A\",\"\"))","v":""},null,"",null,"",null,""]
[null,null,null,null,null,{"$f":"IF(E220=\"Hospital\",\"Insert PERK # Here\",IF(E220=\"OCME\",\"N/A\",\"\"))","v":""},null,"",null,"",null,""]
[null,null,null,null,null,{"$f":"IF(E221=\"Hospital\",\"Insert PERK # Here\",IF(E221=\"OCME\",\"N/A\",\"\"))","v":""},null,"",null,"",null,""]
[null,null,null,null,null,{"$f":"IF(E222=\"Hospital\",\"Insert PERK # Here\",IF(E222=\"OCME\",\"N/A\",\"\"))","v":""},null,"",null,"",null,""]
[null,null,null,null,null,{"$f":"IF(E223=\"Hospital\",\"Insert PERK # Here\",IF(E223=\"OCME\",\"N/A\",\"\"))","v":""},null,"",null,"",null,""]
[null,null,null,null,null,{"$f":"IF(E224=\"Hospital\",\"Insert PERK # Here\",IF(E224=\"OCME\",\"N/A\",\"\"))","v":""},null,"",null,"",null,""]
[null,null,null,null,null,{"$f":"IF(E225=\"Hospital\",\"Insert PERK # Here\",IF(E225=\"OCME\",\"N/A\",\"\"))","v":""},null,"",null,"",null,""]
[null,null,null,null,null,{"$f":"IF(E226=\"Hospital\",\"Insert PERK # Here\",IF(E226=\"OCME\",\"N/A\",\"\"))","v":""},null,"",null,"",null,""]
[null,null,null,null,null,{"$f":"IF(E227=\"Hospital\",\"Insert PERK # Here\",IF(E227=\"OCME\",\"N/A\",\"\"))","v":""},null,"",null,"",null,""]
[null,null,null,null,null,{"$f":"IF(E228=\"Hospital\",\"Insert PERK # Here\",IF(E228=\"OCME\",\"N/A\",\"\"))","v":""},null,"",null,"",null,""]
[null,null,null,null,null,{"$f":"IF(E229=\"Hospital\",\"Insert PERK # Here\",IF(E229=\"OCME\",\"N/A\",\"\"))","v":""},null,"",null,"",null,""]
[null,null,null,null,null,{"$f":"IF(E230=\"Hospital\",\"Insert PERK # Here\",IF(E230=\"OCME\",\"N/A\",\"\"))","v":""},null,"",null,"",null,""]
[null,null,null,null,null,{"$f":"IF(E231=\"Hospital\",\"Insert PERK # Here\",IF(E231=\"OCME\",\"N/A\",\"\"))","v":""},null,"",null,"",null,""]
[null,null,null,null,null,{"$f":"IF(E232=\"Hospital\",\"Insert PERK # Here\",IF(E232=\"OCME\",\"N/A\",\"\"))","v":""},null,"",null,"",null,""]
[null,null,null,null,null,{"$f":"IF(E233=\"Hospital\",\"Insert PERK # Here\",IF(E233=\"OCME\",\"N/A\",\"\"))","v":""},null,"",null,"",null,""]
[null,null,null,null,null,{"$f":"IF(E234=\"Hospital\",\"Insert PERK # Here\",IF(E234=\"OCME\",\"N/A\",\"\"))","v":""},null,"",null,"",null,""]
[null,null,null,null,null,{"$f":"IF(E235=\"Hospital\",\"Insert PERK # Here\",IF(E235=\"OCME\",\"N/A\",\"\"))","v":""},null,"",null,"",null,""]
[null,null,null,null,null,{"$f":"IF(E236=\"Hospital\",\"Insert PERK # Here\",IF(E236=\"OCME\",\"N/A\",\"\"))","v":""},null,"",null,"",null,""]
[null,null,null,null,null,{"$f":"IF(E237=\"Hospital\",\"Insert PERK # Here\",IF(E237=\"OCME\",\"N/A\",\"\"))","v":""},null,"",null,"",null,""]
[null,null,null,null,null,{"$f":"IF(E238=\"Hospital\",\"Insert PERK # Here\",IF(E238=\"OCME\",\"N/A\",\"\"))","v":""},null,"",null,"",null,""]
[null,null,null,null,null,{"$f":"IF(E239=\"Hospital\",\"Insert PERK # Here\",IF(E239=\"OCME\",\"N/A\",\"\"))","v":""},null,"",null,"",null,""]
[null,null,null,null,null,{"$f":"IF(E240=\"Hospital\",\"Insert PERK # Here\",IF(E240=\"OCME\",\"N/A\",\"\"))","v":""},null,"",null,"",null,""]
[null,null,null,null,null,{"$f":"IF(E241=\"Hospital\",\"Insert PERK # Here\",IF(E241=\"OCME\",\"N/A\",\"\"))","v":""},null,"",null,"",null,""]
[null,null,null,null,null,{"$f":"IF(E242=\"Hospital\",\"Insert PERK # Here\",IF(E242=\"OCME\",\"N/A\",\"\"))","v":""},null,"",null,"",null,""]
[null,null,null,null,null,{"$f":"IF(E243=\"Hospital\",\"Insert PERK # Here\",IF(E243=\"OCME\",\"N/A\",\"\"))","v":""},null,"",null,"",null,""]
[null,null,null,null,null,{"$f":"IF(E244=\"Hospital\",\"Insert PERK # Here\",IF(E244=\"OCME\",\"N/A\",\"\"))","v":""},null,"",null,"",null,""]
[null,null,null,null,null,{"$f":"IF(E245=\"Hospital\",\"Insert PERK # Here\",IF(E245=\"OCME\",\"N/A\",\"\"))","v":""},null,"",null,"",null,""]
[null,null,null,null,null,{"$f":"IF(E246=\"Hospital\",\"Insert PERK # Here\",IF(E246=\"OCME\",\"N/A\",\"\"))","v":""},null,"",null,"",null,""]
[null,null,null,null,null,{"$f":"IF(E247=\"Hospital\",\"Insert PERK # Here\",IF(E247=\"OCME\",\"N/A\",\"\"))","v":""},null,"",null,"",null,""]
[null,null,null,null,null,{"$f":"IF(E248=\"Hospital\",\"Insert PERK # Here\",IF(E248=\"OCME\",\"N/A\",\"\"))","v":""},null,"",null,"",null,""]
[null,null,null,null,null,{"$f":"IF(E249=\"Hospital\",\"Insert PERK # Here\",IF(E249=\"OCME\",\"N/A\",\"\"))","v":""},null,"",null,"",null,""]
[null,null,null,null,null,{"$f":"IF(E250=\"Hospital\",\"Insert PERK # Here\",IF(E250=\"OCME\",\"N/A\",\"\"))","v":""},null,"",null,"",null,""]
[null,null,null,null,null,{"$f":"IF(E251=\"Hospital\",\"Insert PERK # Here\",IF(E251=\"OCME\",\"N/A\",\"\"))","v":""},null,"",null,"",null,""]
[null,null,null,null,null,{"$f":"IF(E252=\"Hospital\",\"Insert PERK # Here\",IF(E252=\"OCME\",\"N/A\",\"\"))","v":""},null,"",null,"",null,""]
[null,null,null,null,null,{"$f":"IF(E253=\"Hospital\",\"Insert PERK # Here\",IF(E253=\"OCME\",\"N/A\",\"\"))","v":""},null,"",null,"",null,""]
[null,null,null,null,null,{"$f":"IF(E254=\"Hospital\",\"Insert PERK # Here\",IF(E254=\"OCME\",\"N/A\",\"\"))","v":""},null,"",null,"",null,""]
[null,null,null,null,null,{"$f":"IF(E255=\"Hospital\",\"Insert PERK # Here\",IF(E255=\"OCME\",\"N/A\",\"\"))","v":""},null,"",null,"",null,""]
[null,null,null,null,null,{"$f":"IF(E256=\"Hospital\",\"Insert PERK # Here\",IF(E256=\"OCME\",\"N/A\",\"\"))","v":""},null,"",null,"",null,""]
[null,null,null,null,null,{"$f":"IF(E257=\"Hospital\",\"Insert PERK # Here\",IF(E257=\"OCME\",\"N/A\",\"\"))","v":""},null,"",null,"",null,""]
[null,null,null,null,null,{"$f":"IF(E258=\"Hospital\",\"Insert PERK # Here\",IF(E258=\"OCME\",\"N/A\",\"\"))","v":""},null,"",null,"",null,""]
[null,null,null,null,null,{"$f":"IF(E259=\"Hospital\",\"Insert PERK # Here\",IF(E259=\"OCME\",\"N/A\",\"\"))","v":""},null,"",null,"",null,""]
[null,null,null,null,null,{"$f":"IF(E260=\"Hospital\",\"Insert PERK # Here\",IF(E260=\"OCME\",\"N/A\",\"\"))","v":""},null,"",null,"",null,""]
[null,null,null,null,null,{"$f":"IF(E261=\"Hospital\",\"Insert PERK # Here\",IF(E261=\"OCME\",\"N/A\",\"\"))","v":""},null,"",null,"",null,""]
[null,null,null,null,null,{"$f":"IF(E262=\"Hospital\",\"Insert PERK # Here\",IF(E262=\"OCME\",\"N/A\",\"\"))","v":""},null,"",null,"",null,""]
[null,null,null,null,null,{"$f":"IF(E263=\"Hospital\",\"Insert PERK # Here\",IF(E263=\"OCME\",\"N/A\",\"\"))","v":""},null,"",null,"",null,""]
[null,null,null,null,null,{"$f":"IF(E264=\"Hospital\",\"Insert PERK # Here\",IF(E264=\"OCME\",\"N/A\",\"\"))","v":""},null,"",null,"",null,""]
[null,null,null,null,null,{"$f":"IF(E265=\"Hospital\",\"Insert PERK # Here\",IF(E265=\"OCME\",\"N/A\",\"\"))","v":""},null,"",null,"",null,""]
[null,null,null,null,null,{"$f":"IF(E266=\"Hospital\",\"Insert PERK # Here\",IF(E266=\"OCME\",\"N/A\",\"\"))","v":""},null,"",null,"",null,""]
[null,null,null,null,null,{"$f":"IF(E267=\"Hospital\",\"Insert PERK # Here\",IF(E267=\"OCME\",\"N/A\",\"\"))","v":""},null,"",null,"",null,""]
[null,null,null,null,null,{"$f":"IF(E268=\"Hospital\",\"Insert PERK # Here\",IF(E268=\"OCME\",\"N/A\",\"\"))","v":""},null,"",null,"",null,""]
[null,null,null,null,null,{"$f":"IF(E269=\"Hospital\",\"Insert PERK # Here\",IF(E269=\"OCME\",\"N/A\",\"\"))","v":""},null,"",null,"",null,""]
[null,null,null,null,null,{"$f":"IF(E270=\"Hospital\",\"Insert PERK # Here\",IF(E270=\"OCME\",\"N/A\",\"\"))","v":""},null,"",null,"",null,""]
[null,null,null,null,null,{"$f":"IF(E271=\"Hospital\",\"Insert PERK # Here\",IF(E271=\"OCME\",\"N/A\",\"\"))","v":""},null,"",null,"",null,""]
[null,null,null,null,null,{"$f":"IF(E272=\"Hospital\",\"Insert PERK # Here\",IF(E272=\"OCME\",\"N/A\",\"\"))","v":""},null,"",null,"",null,""]
[null,null,null,null,null,{"$f":"IF(E273=\"Hospital\",\"Insert PERK # Here\",IF(E273=\"OCME\",\"N/A\",\"\"))","v":""},null,"",null,"",null,""]
[null,null,null,null,null,{"$f":"IF(E274=\"Hospital\",\"Insert PERK # Here\",IF(E274=\"OCME\",\"N/A\",\"\"))","v":""},null,"",null,"",null,""]
[null,null,null,null,null,{"$f":"IF(E275=\"Hospital\",\"Insert PERK # Here\",IF(E275=\"OCME\",\"N/A\",\"\"))","v":""},null,"",null,"",null,""]
[null,null,null,null,null,{"$f":"IF(E276=\"Hospital\",\"Insert PERK # Here\",IF(E276=\"OCME\",\"N/A\",\"\"))","v":""},null,"",null,"",null,""]
[null,null,null,null,null,{"$f":"IF(E277=\"Hospital\",\"Insert PERK # Here\",IF(E277=\"OCME\",\"N/A\",\"\"))","v":""},null,"",null,"",null,""]
[null,null,null,null,null,{"$f":"IF(E278=\"Hospital\",\"Insert PERK # Here\",IF(E278=\"OCME\",\"N/A\",\"\"))","v":""},null,{"$f":"IF(G278=\"\",\"\",IF(G278=\"Other\",\"Explain Here\",\"N/A\"))","v":""},null,{"$f":"IF(I278=\"\",\"\",IF(I278=\"Other\",\"Explain Here\",\"N/A\"))","v":""},null,{"$f":"IF(K278=\"\",\"\",IF(K278=\"Other\",\"Explain Here\",\"N/A\"))","v":""}]
[null,null,null,null,null,{"$f":"IF(E279=\"Hospital\",\"Insert PERK # Here\",IF(E279=\"OCME\",\"N/A\",\"\"))","v":""},null,"",null,"",null,""]
[null,null,null,null,null,{"$f":"IF(E280=\"Hospital\",\"Insert PERK # Here\",IF(E280=\"OCME\",\"N/A\",\"\"))","v":""},null,"",null,"",null,""]
[null,null,null,null,null,{"$f":"IF(E281=\"Hospital\",\"Insert PERK # Here\",IF(E281=\"OCME\",\"N/A\",\"\"))","v":""},null,"",null,"",null,""]
[null,null,null,null,null,{"$f":"IF(E282=\"Hospital\",\"Insert PERK # Here\",IF(E282=\"OCME\",\"N/A\",\"\"))","v":""},null,"",null,"",null,""]
[null,null,null,null,null,{"$f":"IF(E283=\"Hospital\",\"Insert PERK # Here\",IF(E283=\"OCME\",\"N/A\",\"\"))","v":""},null,"",null,"",null,""]
[null,null,null,null,null,{"$f":"IF(E284=\"Hospital\",\"Insert PERK # Here\",IF(E284=\"OCME\",\"N/A\",\"\"))","v":""},null,"",null,"",null,""]
[null,null,null,null,null,{"$f":"IF(E285=\"Hospital\",\"Insert PERK # Here\",IF(E285=\"OCME\",\"N/A\",\"\"))","v":""},null,"",null,"",null,""]
[null,null,null,null,null,{"$f":"IF(E286=\"Hospital\",\"Insert PERK # Here\",IF(E286=\"OCME\",\"N/A\",\"\"))","v":""},null,"",null,"",null,""]
[null,null,null,null,null,{"$f":"IF(E287=\"Hospital\",\"Insert PERK # Here\",IF(E287=\"OCME\",\"N/A\",\"\"))","v":""},null,"",null,"",null,""]
[null,null,null,null,null,{"$f":"IF(E288=\"Hospital\",\"Insert PERK # Here\",IF(E288=\"OCME\",\"N/A\",\"\"))","v":""},null,"",null,"",null,""]
[null,null,null,null,null,{"$f":"IF(E289=\"Hospital\",\"Insert PERK # Here\",IF(E289=\"OCME\",\"N/A\",\"\"))","v":""},null,"",null,"",null,""]
[null,null,null,null,null,{"$f":"IF(E290=\"Hospital\",\"Insert PERK # Here\",IF(E290=\"OCME\",\"N/A\",\"\"))","v":""},null,"",null,"",null,""]
[null,null,null,null,null,{"$f":"IF(E291=\"Hospital\",\"Insert PERK # Here\",IF(E291=\"OCME\",\"N/A\",\"\"))","v":""},null,"",null,"",null,""]
[null,null,null,null,null,{"$f":"IF(E292=\"Hospital\",\"Insert PERK # Here\",IF(E292=\"OCME\",\"N/A\",\"\"))","v":""},null,"",null,"",null,""]
[null,null,null,null,null,{"$f":"IF(E293=\"Hospital\",\"Insert PERK # Here\",IF(E293=\"OCME\",\"N/A\",\"\"))","v":""},null,"",null,"",null,""]
[null,null,null,null,null,{"$f":"IF(E294=\"Hospital\",\"Insert PERK # Here\",IF(E294=\"OCME\",\"N/A\",\"\"))","v":""},null,"",null,"",null,""]
[null,null,null,null,null,{"$f":"IF(E295=\"Hospital\",\"Insert PERK # Here\",IF(E295=\"OCME\",\"N/A\",\"\"))","v":""},null,"",null,"",null,""]
[null,null,null,null,null,{"$f":"IF(E296=\"Hospital\",\"Insert PERK # Here\",IF(E296=\"OCME\",\"N/A\",\"\"))","v":""},null,"",null,"",null,""]
[null,null,null,null,null,{"$f":"IF(E297=\"Hospital\",\"Insert PERK # Here\",IF(E297=\"OCME\",\"N/A\",\"\"))","v":""},null,"",null,"",null,""]
[null,null,null,null,null,{"$f":"IF(E298=\"Hospital\",\"Insert PERK # Here\",IF(E298=\"OCME\",\"N/A\",\"\"))","v":""},null,"",null,"",null,""]
[null,null,null,null,null,{"$f":"IF(E299=\"Hospital\",\"Insert PERK # Here\",IF(E299=\"OCME\",\"N/A\",\"\"))","v":""},null,"",null,"",null,""]
[null,null,null,null,null,{"$f":"IF(E300=\"Hospital\",\"Insert PERK # Here\",IF(E300=\"OCME\",\"N/A\",\"\"))","v":""},null,"",null,"",null,""]
[null,null,null,null,null,{"$f":"IF(E301=\"Hospital\",\"Insert PERK # Here\",IF(E301=\"OCME\",\"N/A\",\"\"))","v":""},null,"",null,"",null,""]
[null,null,null,null,null,{"$f":"IF(E302=\"Hospital\",\"Insert PERK # Here\",IF(E302=\"OCME\",\"N/A\",\"\"))","v":""},null,"",null,"",null,""]
[null,null,null,null,null,{"$f":"IF(E303=\"Hospital\",\"Insert PERK # Here\",IF(E303=\"OCME\",\"N/A\",\"\"))","v":""},null,"",null,"",null,""]
[null,null,null,null,null,{"$f":"IF(E304=\"Hospital\",\"Insert PERK # Here\",IF(E304=\"OCME\",\"N/A\",\"\"))","v":""},null,"",null,"",null,""]
[null,null,null,null,null,{"$f":"IF(E305=\"Hospital\",\"Insert PERK # Here\",IF(E305=\"OCME\",\"N/A\",\"\"))","v":""},null,"",null,"",null,""]
[null,null,null,null,null,{"$f":"IF(E306=\"Hospital\",\"Insert PERK # Here\",IF(E306=\"OCME\",\"N/A\",\"\"))","v":""},null,"",null,"",null,""]
[null,null,null,null,null,{"$f":"IF(E307=\"Hospital\",\"Insert PERK # Here\",IF(E307=\"OCME\",\"N/A\",\"\"))","v":""},null,"",null,"",null,""]
[null,null,null,null,null,{"$f":"IF(E308=\"Hospital\",\"Insert PERK # Here\",IF(E308=\"OCME\",\"N/A\",\"\"))","v":""},null,"",null,"",null,""]
[null,null,null,null,null,{"$f":"IF(E309=\"Hospital\",\"Insert PERK # Here\",IF(E309=\"OCME\",\"N/A\",\"\"))","v":""},null,"",null,"",null,""]
[null,null,null,null,null,{"$f":"IF(E310=\"Hospital\",\"Insert PERK # Here\",IF(E310=\"OCME\",\"N/A\",\"\"))","v":""},null,"",null,"",null,""]
[null,null,null,null,null,{"$f":"IF(E311=\"Hospital\",\"Insert PERK # Here\",IF(E311=\"OCME\",\"N/A\",\"\"))","v":""},null,"",null,"",null,""]
[null,null,null,null,null,{"$f":"IF(E312=\"Hospital\",\"Insert PERK # Here\",IF(E312=\"OCME\",\"N/A\",\"\"))","v":""},null,"",null,"",null,""]
[null,null,null,null,null,{"$f":"IF(E313=\"Hospital\",\"Insert PERK # Here\",IF(E313=\"OCME\",\"N/A\",\"\"))","v":""},null,"",null,"",null,""]
[null,null,null,null,null,{"$f":"IF(E314=\"Hospital\",\"Insert PERK # Here\",IF(E314=\"OCME\",\"N/A\",\"\"))","v":""},null,"",null,"",null,""]
[null,null,null,null,null,{"$f":"IF(E315=\"Hospital\",\"Insert PERK # Here\",IF(E315=\"OCME\",\"N/A\",\"\"))","v":""},null,"",null,"",null,""]
[null,null,null,null,null,{"$f":"IF(E316=\"Hospital\",\"Insert PERK # Here\",IF(E316=\"OCME\",\"N/A\",\"\"))","v":""},null,"",null,"",null,""]
[null,null,null,null,null,{"$f":"IF(E317=\"Hospital\",\"Insert PERK # Here\",IF(E317=\"OCME\",\"N/A\",\"\"))","v":""},null,"",null,"",null,""]
[null,null,null,null,null,{"$f":"IF(E318=\"Hospital\",\"Insert PERK # Here\",IF(E318=\"OCME\",\"N/A\",\"\"))","v":""},null,"",null,"",null,""]
[null,null,null,null,null,{"$f":"IF(E319=\"Hospital\",\"Insert PERK # Here\",IF(E319=\"OCME\",\"N/A\",\"\"))","v":""},null,"",null,"",null,""]
[null,null,null,null,null,{"$f":"IF(E320=\"Hospital\",\"Insert PERK # Here\",IF(E320=\"OCME\",\"N/A\",\"\"))","v":""},null,"",null,"",null,""]
[null,null,null,null,null,{"$f":"IF(E321=\"Hospital\",\"Insert PERK # Here\",IF(E321=\"OCME\",\"N/A\",\"\"))","v":""},null,"",null,"",null,""]
[null,null,null,null,null,{"$f":"IF(E322=\"Hospital\",\"Insert PERK # Here\",IF(E322=\"OCME\",\"N/A\",\"\"))","v":""},null,"",null,"",null,""]
[null,null,null,null,null,{"$f":"IF(E323=\"Hospital\",\"Insert PERK # Here\",IF(E323=\"OCME\",\"N/A\",\"\"))","v":""},null,"",null,"",null,""]
[null,null,null,null,null,{"$f":"IF(E324=\"Hospital\",\"Insert PERK # Here\",IF(E324=\"OCME\",\"N/A\",\"\"))","v":""},null,"",null,"",null,""]
[null,null,null,null,null,{"$f":"IF(E325=\"Hospital\",\"Insert PERK # Here\",IF(E325=\"OCME\",\"N/A\",\"\"))","v":""},null,"",null,"",null,""]
[null,null,null,null,null,{"$f":"IF(E326=\"Hospital\",\"Insert PERK # Here\",IF(E326=\"OCME\",\"N/A\",\"\"))","v":""},null,"",null,"",null,""]
[null,null,null,null,null,{"$f":"IF(E327=\"Hospital\",\"Insert PERK # Here\",IF(E327=\"OCME\",\"N/A\",\"\"))","v":""},null,"",null,"",null,""]
[null,null,null,null,null,{"$f":"IF(E328=\"Hospital\",\"Insert PERK # Here\",IF(E328=\"OCME\",\"N/A\",\"\"))","v":""},null,"",null,"",null,""]
[null,null,null,null,null,{"$f":"IF(E329=\"Hospital\",\"Insert PERK # Here\",IF(E329=\"OCME\",\"N/A\",\"\"))","v":""},null,"",null,"",null,""]
[null,null,null,null,null,{"$f":"IF(E330=\"Hospital\",\"Insert PERK # Here\",IF(E330=\"OCME\",\"N/A\",\"\"))","v":""},null,"",null,"",null,""]
[null,null,null,null,null,{"$f":"IF(E331=\"Hospital\",\"Insert PERK # Here\",IF(E331=\"OCME\",\"N/A\",\"\"))","v":""},null,"",null,"",null,""]
[null,null,null,null,null,{"$f":"IF(E332=\"Hospital\",\"Insert PERK # Here\",IF(E332=\"OCME\",\"N/A\",\"\"))","v":""},null,"",null,"",null,""]
[null,null,null,null,null,{"$f":"IF(E333=\"Hospital\",\"Insert PERK # Here\",IF(E333=\"OCME\",\"N/A\",\"\"))","v":""},null,"",null,"",null,""]
[null,null,null,null,null,{"$f":"IF(E334=\"Hospital\",\"Insert PERK # Here\",IF(E334=\"OCME\",\"N/A\",\"\"))","v":""},null,"",null,"",null,""]
[null,null,null,null,null,{"$f":"IF(E335=\"Hospital\",\"Insert PERK # Here\",IF(E335=\"OCME\",\"N/A\",\"\"))","v":""},null,"",null,"",null,""]
[null,null,null,null,null,{"$f":"IF(E336=\"Hospital\",\"Insert PERK # Here\",IF(E336=\"OCME\",\"N/A\",\"\"))","v":""},null,"",null,"",null,""]
[null,null,null,null,null,{"$f":"IF(E337=\"Hospital\",\"Insert PERK # Here\",IF(E337=\"OCME\",\"N/A\",\"\"))","v":""},null,"",null,"",null,""]
[null,null,null,null,null,{"$f":"IF(E338=\"Hospital\",\"Insert PERK # Here\",IF(E338=\"OCME\",\"N/A\",\"\"))","v":""},null,"",null,"",null,""]
[null,null,null,null,null,{"$f":"IF(E339=\"Hospital\",\"Insert PERK # Here\",IF(E339=\"OCME\",\"N/A\",\"\"))","v":""},null,"",null,"",null,""]
[null,null,null,null,null,{"$f":"IF(E340=\"Hospital\",\"Insert PERK # Here\",IF(E340=\"OCME\",\"N/A\",\"\"))","v":""},null,"",null,"",null,""]
[null,null,null,null,null,{"$f":"IF(E341=\"Hospital\",\"Insert PERK # Here\",IF(E341=\"OCME\",\"N/A\",\"\"))","v":""},null,"",null,"",null,""]
[null,null,null,null,null,{"$f":"IF(E342=\"Hospital\",\"Insert PERK # Here\",IF(E342=\"OCME\",\"N/A\",\"\"))","v":""},null,{"$f":"IF(G342=\"\",\"\",IF(G342=\"Other\",\"Explain Here\",\"N/A\"))","v":""},null,{"$f":"IF(I342=\"\",\"\",IF(I342=\"Other\",\"Explain Here\",\"N/A\"))","v":""},null,{"$f":"IF(K342=\"\",\"\",IF(K342=\"Other\",\"Explain Here\",\"N/A\"))","v":""}]
[null,null,null,null,null,{"$f":"IF(E343=\"Hospital\",\"Insert PERK # Here\",IF(E343=\"OCME\",\"N/A\",\"\"))","v":""},null,"",null,"",null,""]
[null,null,null,null,null,{"$f":"IF(E344=\"Hospital\",\"Insert PERK # Here\",IF(E344=\"OCME\",\"N/A\",\"\"))","v":""},null,"",null,"",null,""]
[null,null,null,null,null,{"$f":"IF(E345=\"Hospital\",\"Insert PERK # Here\",IF(E345=\"OCME\",\"N/A\",\"\"))","v":""},null,"",null,"",null,""]
[null,null,null,null,null,{"$f":"IF(E346=\"Hospital\",\"Insert PERK # Here\",IF(E346=\"OCME\",\"N/A\",\"\"))","v":""},null,"",null,"",null,""]
[null,null,null,null,null,{"$f":"IF(E347=\"Hospital\",\"Insert PERK # Here\",IF(E347=\"OCME\",\"N/A\",\"\"))","v":""},null,"",null,"",null,""]
[null,null,null,null,null,{"$f":"IF(E348=\"Hospital\",\"Insert PERK # Here\",IF(E348=\"OCME\",\"N/A\",\"\"))","v":""},null,"",null,"",null,""]
[null,null,null,null,null,{"$f":"IF(E349=\"Hospital\",\"Insert PERK # Here\",IF(E349=\"OCME\",\"N/A\",\"\"))","v":""},null,"",null,"",null,""]
[null,null,null,null,null,{"$f":"IF(E350=\"Hospital\",\"Insert PERK # Here\",IF(E350=\"OCME\",\"N/A\",\"\"))","v":""},null,"",null,"",null,""]
[null,null,null,null,null,{"$f":"IF(E351=\"Hospital\",\"Insert PERK # Here\",IF(E351=\"OCME\",\"N/A\",\"\"))","v":""},null,"",null,"",null,""]
[null,null,null,null,null,{"$f":"IF(E352=\"Hospital\",\"Insert PERK # Here\",IF(E352=\"OCME\",\"N/A\",\"\"))","v":""},null,"",null,"",null,""]
[null,null,null,null,null,{"$f":"IF(E353=\"Hospital\",\"Insert PERK # Here\",IF(E353=\"OCME\",\"N/A\",\"\"))","v":""},null,"",null,"",null,""]
[null,null,null,null,null,{"$f":"IF(E354=\"Hospital\",\"Insert PERK # Here\",IF(E354=\"OCME\",\"N/A\",\"\"))","v":""},null,"",null,"",null,""]
[null,null,null,null,null,{"$f":"IF(E355=\"Hospital\",\"Insert PERK # Here\",IF(E355=\"OCME\",\"N/A\",\"\"))","v":""},null,"",null,"",null,""]
[null,null,null,null,null,{"$f":"IF(E356=\"Hospital\",\"Insert PERK # Here\",IF(E356=\"OCME\",\"N/A\",\"\"))","v":""},null,"",null,"",null,""]
[null,null,null,null,null,{"$f":"IF(E357=\"Hospital\",\"Insert PERK # Here\",IF(E357=\"OCME\",\"N/A\",\"\"))","v":""},null,"",null,"",null,""]
[null,null,null,null,null,{"$f":"IF(E358=\"Hospital\",\"Insert PERK # Here\",IF(E358=\"OCME\",\"N/A\",\"\"))","v":""},null,"",null,"",null,""]
[null,null,null,null,null,{"$f":"IF(E359=\"Hospital\",\"Insert PERK # Here\",IF(E359=\"OCME\",\"N/A\",\"\"))","v":""},null,"",null,"",null,""]
[null,null,null,null,null,{"$f":"IF(E360=\"Hospital\",\"Insert PERK # Here\",IF(E360=\"OCME\",\"N/A\",\"\"))","v":""},null,"",null,"",null,""]
[null,null,null,null,null,{"$f":"IF(E361=\"Hospital\",\"Insert PERK # Here\",IF(E361=\"OCME\",\"N/A\",\"\"))","v":""},null,"",null,"",null,""]
[null,null,null,null,null,{"$f":"IF(E362=\"Hospital\",\"Insert PERK # Here\",IF(E362=\"OCME\",\"N/A\",\"\"))","v":""},null,"",null,"",null,""]
[null,null,null,null,null,{"$f":"IF(E363=\"Hospital\",\"Insert PERK # Here\",IF(E363=\"OCME\",\"N/A\",\"\"))","v":""},null,"",null,"",null,""]
[null,null,null,null,null,{"$f":"IF(E364=\"Hospital\",\"Insert PERK # Here\",IF(E364=\"OCME\",\"N/A\",\"\"))","v":""},null,"",null,"",null,""]
[null,null,null,null,null,{"$f":"IF(E365=\"Hospital\",\"Insert PERK # Here\",IF(E365=\"OCME\",\"N/A\",\"\"))","v":""},null,"",null,"",null,""]
[null,null,null,null,null,{"$f":"IF(E366=\"Hospital\",\"Insert PERK # Here\",IF(E366=\"OCME\",\"N/A\",\"\"))","v":""},null,"",null,"",null,""]
[null,null,null,null,null,{"$f":"IF(E367=\"Hospital\",\"Insert PERK # Here\",IF(E367=\"OCME\",\"N/A\",\"\"))","v":""},null,"",null,"",null,""]
[null,null,null,null,null,{"$f":"IF(E368=\"Hospital\",\"Insert PERK # Here\",IF(E368=\"OCME\",\"N/A\",\"\"))","v":""},null,"",null,"",null,""]
[null,null,null,null,null,{"$f":"IF(E369=\"Hospital\",\"Insert PERK # Here\",IF(E369=\"OCME\",\"N/A\",\"\"))","v":""},null,"",null,"",null,""]
[null,null,null,null,null,{"$f":"IF(E370=\"Hospital\",\"Insert PERK # Here\",IF(E370=\"OCME\",\"N/A\",\"\"))","v":""},null,"",null,"",null,""]
[null,null,null,null,null,{"$f":"IF(E371=\"Hospital\",\"Insert PERK # Here\",IF(E371=\"OCME\",\"N/A\",\"\"))","v":""},null,"",null,"",null,""]
[null,null,null,null,null,{"$f":"IF(E372=\"Hospital\",\"Insert PERK # Here\",IF(E372=\"OCME\",\"N/A\",\"\"))","v":""},null,"",null,"",null,""]
[null,null,null,null,null,{"$f":"IF(E373=\"Hospital\",\"Insert PERK # Here\",IF(E373=\"OCME\",\"N/A\",\"\"))","v":""},null,"",null,"",null,""]
[null,null,null,null,null,{"$f":"IF(E374=\"Hospital\",\"Insert PERK # Here\",IF(E374=\"OCME\",\"N/A\",\"\"))","v":""},null,"",null,"",null,""]
[null,null,null,null,null,{"$f":"IF(E375=\"Hospital\",\"Insert PERK # Here\",IF(E375=\"OCME\",\"N/A\",\"\"))","v":""},null,"",null,"",null,""]
[null,null,null,null,null,{"$f":"IF(E376=\"Hospital\",\"Insert PERK # Here\",IF(E376=\"OCME\",\"N/A\",\"\"))","v":""},null,"",null,"",null,""]
[null,null,null,null,null,{"$f":"IF(E377=\"Hospital\",\"Insert PERK # Here\",IF(E377=\"OCME\",\"N/A\",\"\"))","v":""},null,"",null,"",null,""]
[null,null,null,null,null,{"$f":"IF(E378=\"Hospital\",\"Insert PERK # Here\",IF(E378=\"OCME\",\"N/A\",\"\"))","v":""},null,"",null,"",null,""]
[null,null,null,null,null,{"$f":"IF(E379=\"Hospital\",\"Insert PERK # Here\",IF(E379=\"OCME\",\"N/A\",\"\"))","v":""},null,"",null,"",null,""]
[null,null,null,null,null,{"$f":"IF(E380=\"Hospital\",\"Insert PERK # Here\",IF(E380=\"OCME\",\"N/A\",\"\"))","v":""},null,"",null,"",null,""]
[null,null,null,null,null,{"$f":"IF(E381=\"Hospital\",\"Insert PERK # Here\",IF(E381=\"OCME\",\"N/A\",\"\"))","v":""},null,"",null,"",null,""]
[null,null,null,null,null,{"$f":"IF(E382=\"Hospital\",\"Insert PERK # Here\",IF(E382=\"OCME\",\"N/A\",\"\"))","v":""},null,"",null,"",null,""]
[null,null,null,null,null,{"$f":"IF(E383=\"Hospital\",\"Insert PERK # Here\",IF(E383=\"OCME\",\"N/A\",\"\"))","v":""},null,"",null,"",null,""]
[null,null,null,null,null,{"$f":"IF(E384=\"Hospital\",\"Insert PERK # Here\",IF(E384=\"OCME\",\"N/A\",\"\"))","v":""},null,"",null,"",null,""]
[null,null,null,null,null,{"$f":"IF(E385=\"Hospital\",\"Insert PERK # Here\",IF(E385=\"OCME\",\"N/A\",\"\"))","v":""},null,"",null,"",null,""]
[null,null,null,null,null,{"$f":"IF(E386=\"Hospital\",\"Insert PERK # Here\",IF(E386=\"OCME\",\"N/A\",\"\"))","v":""},null,"",null,"",null,""]
[null,null,null,null,null,{"$f":"IF(E387=\"Hospital\",\"Insert PERK # Here\",IF(E387=\"OCME\",\"N/A\",\"\"))","v":""},null,"",null,"",null,""]
[null,null,null,null,null,{"$f":"IF(E388=\"Hospital\",\"Insert PERK # Here\",IF(E388=\"OCME\",\"N/A\",\"\"))","v":""},null,"",null,"",null,""]
[null,null,null,null,null,{"$f":"IF(E389=\"Hospital\",\"Insert PERK # Here\",IF(E389=\"OCME\",\"N/A\",\"\"))","v":""},null,"",null,"",null,""]
[null,null,null,null,null,{"$f":"IF(E390=\"Hospital\",\"Insert PERK # Here\",IF(E390=\"OCME\",\"N/A\",\"\"))","v":""},null,"",null,"",null,""]
[null,null,null,null,null,{"$f":"IF(E391=\"Hospital\",\"Insert PERK # Here\",IF(E391=\"OCME\",\"N/A\",\"\"))","v":""},null,"",null,"",null,""]
[null,null,null,null,null,{"$f":"IF(E392=\"Hospital\",\"Insert PERK # Here\",IF(E392=\"OCME\",\"N/A\",\"\"))","v":""},null,"",null,"",null,""]
[null,null,null,null,null,{"$f":"IF(E393=\"Hospital\",\"Insert PERK # Here\",IF(E393=\"OCME\",\"N/A\",\"\"))","v":""},null,"",null,"",null,""]
[null,null,null,null,null,{"$f":"IF(E394=\"Hospital\",\"Insert PERK # Here\",IF(E394=\"OCME\",\"N/A\",\"\"))","v":""},null,"",null,"",null,""]
[null,null,null,null,null,{"$f":"IF(E395=\"Hospital\",\"Insert PERK # Here\",IF(E395=\"OCME\",\"N/A\",\"\"))","v":""},null,"",null,"",null,""]
[null,null,null,null,null,{"$f":"IF(E396=\"Hospital\",\"Insert PERK # Here\",IF(E396=\"OCME\",\"N/A\",\"\"))","v":""},null,"",null,"",null,""]
[null,null,null,null,null,{"$f":"IF(E397=\"Hospital\",\"Insert PERK # Here\",IF(E397=\"OCME\",\"N/A\",\"\"))","v":""},null,"",null,"",null,""]
[null,null,null,null,null,{"$f":"IF(E398=\"Hospital\",\"Insert PERK # Here\",IF(E398=\"OCME\",\"N/A\",\"\"))","v":""},null,"",null,"",null,""]
[null,null,null,null,null,{"$f":"IF(E399=\"Hospital\",\"Insert PERK # Here\",IF(E399=\"OCME\",\"N/A\",\"\"))","v":""},null,"",null,"",null,""]
[null,null,null,null,null,{"$f":"IF(E400=\"Hospital\",\"Insert PERK # Here\",IF(E400=\"OCME\",\"N/A\",\"\"))","v":""},null,"",null,"",null,""]

{"sheet":"LOOKUP","index":1,"n_rows":391,"n_cols":7,"rows_kept":391,"cut":false,"hidden":true,"merged":[]}
["REASON_CODE",null,"AGY_NAME",null,"TYPES",null,"PERK"]
["Anonymous/blind report PERK (no victim information)",null,"Abingdon Police Department",null,"Attempted Rape",null,"Hospital"]
["Incident currently under investigation",null,"Accomack County Sheriff's Office",null,"Attempted Sexual Battery",null,"OCME"]
["PERK collected in Commonwealth for out of state jurisdiction",null,"Albemarle - Charlottesville Regional Jail",null,"Attempted Sodomy"]
["PERK collected in routine death investigation – no probable cause to submit for testing",null,"Albemarle County Police Department",null,"Carnal Knowledge"]
["PERK not relevant for evidentiary purposes (e.g., suspect claims consent) or not necessary for prosecution (e.g., suspect confessed)",null,"Albemarle County Sheriff`s Office",null,"Manslaughter"]
["PERK submitted to a non-DFS laboratory for testing",null,"Alberta Police Department",null,"Murder"]
["Prosecution declined",null,"Alexandria City Sheriff's Office",null,"Object Sexual Penetration"]
["Victim elected not to participate further in criminal justice process",null,"Alexandria Police Department",null,"Rape"]
["Other",null,"Alleghany County Sheriff`s Office",null,"Sexual Battery"]
[null,null,"Altavista Police Department",null,"Sodomy"]
[null,null,"Amelia County Sheriff's Office",null,"Other"]
[null,null,"Amherst County Sheriff's Office"]
[null,null,"Amherst Police Department"]
[null,null,"Appalachia Police Department"]
[null,null,"Appomattox County Sheriff`s Office"]
[null,null,"Arlington County Police Department"]
[null,null,"Arlington County Sheriff`s Office"]
[null,null,"Ashland Police Department"]
[null,null,"Augusta County Sheriff's Office"]
[null,null,"Bath County Sheriff's Office"]
[null,null,"Bedford County Sheriff's Office"]
[null,null,"Bedford Police Department"]
[null,null,"Berryville Police Department"]
[null,null,"Big Stone Gap Police Department"]
[null,null,"Blacksburg Police Department"]
[null,null,"Blackstone Police Department"]
[null,null,"Bland County Sheriff's Office"]
[null,null,"Bloxom Police Department"]
[null,null,"Blue Ridge Community College Police Department"]
[null,null,"Blue Ridge Regional Jail Authority"]
[null,null,"Bluefield Police Department"]
[null,null,"Boones Mill Police Department"]
[null,null,"Botetourt County Sheriff`s Office"]
[null,null,"Bowling Green Police Department"]
[null,null,"Boykins Police Department"]
[null,null,"Bridgewater College Police Department"]
[null,null,"Bridgewater Police Department"]
[null,null,"Bristol City Sheriff's Office"]
[null,null,"Bristol Police Department"]
[null,null,"Broadway Police Department"]
[null,null,"Brodnax Police Department"]
[null,null,"Brookneal Police Department"]
[null,null,"Brunswick County Sheriff`s Office"]
[null,null,"Buchanan County Sheriff's Office"]
[null,null,"Buckingham County Sheriff`s Office"]
[null,null,"Buena Vista Police Department"]
[null,null,"Buena Vista Sheriff's Office"]
[null,null,"Burkeville Police Department"]
[null,null,"Campbell County Sheriff's Office"]
[null,null,"Cape Charles Police Department"]
[null,null,"Caroline County Sheriff's Office"]
[null,null,"Carroll County Sheriff's Office"]
[null,null,"Cedar Bluff Police Department"]
[null,null,"Central Virginia Community College Police Department"]
[null,null,"Central Virginia Regional Jail"]
[null,null,"Charles City County Sheriff`s Office"]
[null,null,"Charlotte County Sheriff`s Office"]
[null,null,"Charlottesville Albemarle Airport Police Department"]
[null,null,"Charlottesville City Sheriff’s Office"]
[null,null,"Charlottesville Police Department"]
[null,null,"Chase City Police Department"]
[null,null,"Chatham Police Department"]
[null,null,"Chesapeake Bay Bridge-Tunnel Police Department"]
[null,null,"Chesapeake City Sheriff's Office"]
[null,null,"Chesapeake Police Department"]
[null,null,"Chesterfield County Police Department"]
[null,null,"Chesterfield County Sheriff`s Office"]
[null,null,"Chilhowie Police Department"]
[null,null,"Chincoteague Police Department"]
[null,null,"Christiansburg Police Department"]
[null,null,"Christopher Newport University Police Department"]
[null,null,"Clarke County Sheriff's Office"]
[null,null,"Clarksville Police Department"]
[null,null,"Clifton Forge Police Department"]
[null,null,"Clinchco Police Department"]
[null,null,"Clintwood Police Department"]
[null,null,"Coeburn Police Department"]
[null,null,"College of William & Mary Campus Police Department"]
[null,null,"Colonial Beach Police Department"]
[null,null,"Colonial Heights City Sheriff`s Office"]
[null,null,"Colonial Heights Police Department"]
[null,null,"Courtland Police Department"]
[null,null,"Covington Police Department"]
[null,null,"Craig County Sheriff's Office"]
[null,null,"Craigsville Police Department"]
[null,null,"Crewe Police Department"]
[null,null,"Culpeper County Sheriff's Office"]
[null,null,"Culpeper Police Department"]
[null,null,"Cumberland County Sheriff`s Office"]
[null,null,"Damascus Police Department"]
[null,null,"Danville Adult Detention Center"]
[null,null,"Danville City Sheriff's Office"]
[null,null,"Danville Police Department"]
[null,null,"Dayton Police Department"]
[null,null,"Department of Conservation and Recreation"]
[null,null,"Department of Corrections"]
[null,null,"Department of Game and Inland Fisheries"]
[null,null,"Department of Juvenile Justice"]
[null,null,"Department of Motor Vehicles"]
[null,null,"Dickenson County Sheriff`s Office"]
[null,null,"Dinwiddie County Sheriff`s Office"]
[null,null,"Division of Capitol Police"]
[null,null,"Drakes Branch Police Department"]
[null,null,"Dublin Police Department"]
[null,null,"Dumfries Police Department"]
[null,null,"Eastern Shore Community College Police Department"]
[null,null,"Eastern Virginia Medical School Police Department"]
[null,null,"Eastville Police Department"]
[null,null,"Edinburg Police Department"]
[null,null,"Elkton Police Department"]
[null,null,"Emory & Henry College Police Department"]
[null,null,"Emporia City Sheriff's Office"]
[null,null,"Emporia Police Department"]
[null,null,"Essex County Sheriff`s Office"]
[null,null,"Exmore Police Department"]
[null,null,"Fairfax City Police Department"]
[null,null,"Fairfax County Police Department"]
[null,null,"Fairfax County Sheriff's Office"]
[null,null,"Falls Church City Sheriff`s Office"]
[null,null,"Falls Church Police Department"]
[null,null,"Farmville Police Department"]
[null,null,"Fauquier County Sheriff's Office"]
[null,null,"Ferrum College Police Department"]
[null,null,"Floyd County Sheriff's Office"]
[null,null,"Fluvanna County Sheriff's Office"]
[null,null,"Franklin County Sheriff's Office"]
[null,null,"Franklin Police Department"]
[null,null,"Frederick County Sheriff`s Office"]
[null,null,"Fredericksburg City Sheriff`s Office"]
[null,null,"Fredericksburg Police Department"]
[null,null,"Front Royal Police Department"]
[null,null,"Galax Police Department"]
[null,null,"Gate City Police Department"]
[null,null,"George Mason University Police Dept."]
[null,null,"Germanna Community College Police Department"]
[null,null,"Giles County Sheriff's Office"]
[null,null,"Glade Spring Police Department"]
[null,null,"Glasgow Police Department"]
[null,null,"Glen Lyn Police Department"]
[null,null,"Gloucester County Sheriff`s Office"]
[null,null,"Goochland County Sheriff`s Office"]
[null,null,"Gordonsville Police Department"]
[null,null,"Grayson County Sheriff's Office"]
[null,null,"Greene County Sheriff's Office"]
[null,null,"Greensville County Sheriff`s Office"]
[null,null,"Gretna Police Department"]
[null,null,"Grottoes Police Department"]
[null,null,"Grundy Police Department"]
[null,null,"Halifax County Sheriff's Office"]
[null,null,"Halifax Police Department"]
[null,null,"Hallwood Police Department"]
[null,null,"Hampden - Sydney College Police"]
[null,null,"Hampton City Sheriff's Office"]
[null,null,"Hampton Police Department"]
[null,null,"Hampton Roads Regional Jail"]
[null,null,"Hampton University Police Department"]
[null,null,"Hanover County Sheriff's Office"]
[null,null,"Harrisonburg Police Department"]
[null,null,"Haymarket Police Department"]
[null,null,"Haysi Police Department"]
[null,null,"Henrico County Division of Police"]
[null,null,"Henrico County Sheriff's Office"]
[null,null,"Henry County Sheriff's Office"]
[null,null,"Herndon Police Department"]
[null,null,"Highland County Sheriff's Office"]
[null,null,"Hillsville Police Department"]
[null,null,"Honaker Police Department"]
[null,null,"Hopewell City Sheriff's Office"]
[null,null,"Hopewell Police Department"]
[null,null,"Hurt Police Department"]
[null,null,"Independence Police Department"]
[null,null,"Iron Gate Police Department"]
[null,null,"Isle of Wight County Sheriff`s Office"]
[null,null,"J. Sargeant Reynolds Community College Police Department"]
[null,null,"James City County Police Department"]
[null,null,"James Madison University Police Department"]
[null,null,"Jonesville Police Department"]
[null,null,"Kenbridge Police Department"]
[null,null,"Kilmarnock Police Department"]
[null,null,"King & Queen County Sheriff`s Office"]
[null,null,"King George County Sheriff`s Office"]
[null,null,"King William County Sheriff`s Office"]
[null,null,"La Crosse Police Department"]
[null,null,"Lancaster County Sheriff`s Office"]
[null,null,"Lawrenceville Police Department"]
[null,null,"Lebanon Police Department"]
[null,null,"Lee County Sheriff's Office"]
[null,null,"Leesburg Police Department"]
[null,null,"Lexington Police Department"]
[null,null,"Liberty University Police Department"]
[null,null,"Longwood University Police Department"]
[null,null,"Lord Fairfax Community College Police Department"]
[null,null,"Loudoun County Sheriff's Office"]
[null,null,"Louisa County Sheriff's Office"]
[null,null,"Louisa Police Department"]
[null,null,"Lunenburg County Sheriff`s Office"]
[null,null,"Luray Police Department"]
[null,null,"Lynchburg City Sheriff's Office"]
[null,null,"Lynchburg Police Department"]
[null,null,"Madison County Sheriff's Office"]
[null,null,"Manassas City Police Department"]
[null,null,"Manassas Park City Police Dept."]
[null,null,"Marion Police Department"]
[null,null,"Martinsville Police Department"]
[null,null,"Martinsville Sheriff's Office"]
[null,null,"Mathews County Sheriff's Office"]
[null,null,"Mckenney Police Department"]
[null,null,"Mecklenburg County Sheriff`s Office"]
[null,null,"Meherrin River Regional Jail"]
[null,null,"Metro Washington Airport Authority Police Department"]
[null,null,"Middle Peninsula Regional Security Center"]
[null,null,"Middle River Regional Jail"]
[null,null,"Middleburg Police Department"]
[null,null,"Middlesex County Sheriff`s Office"]
[null,null,"Middletown Police Department"]
[null,null,"Montgomery County Sheriff`s Office"]
[null,null,"Montross Police Department"]
[null,null,"Mount Jackson Police Department"]
[null,null,"Mountain Empire Community College Campus Police Department"]
[null,null,"Narrows Police Department"]
[null,null,"Nelson County Sheriff's Office"]
[null,null,"New Kent County Sheriff's Office"]
[null,null,"New Market Police Department"]
[null,null,"New River Valley Regional Jail"]
[null,null,"Newport News City Sheriff`s Office"]
[null,null,"Newport News Department of Adult Corrections"]
[null,null,"Newport News Police Department"]
[null,null,"Newport News/Williamsburg Int`l Airport Police Department"]
[null,null,"Newsoms Police Department"]
[null,null,"Norfolk City Sheriff's Office"]
[null,null,"Norfolk International Airport Police Department"]
[null,null,"Norfolk Police Department"]
[null,null,"Norfolk State University Police Department"]
[null,null,"Northampton County Sheriff`s Office"]
[null,null,"Northern Neck Regional Jail"]
[null,null,"Northern VA Community College Police Department"]
[null,null,"Northumberland County Sheriff`s Office"]
[null,null,"Northwestern Regional Adult Detention Center"]
[null,null,"Norton City Sheriff's Office"]
[null,null,"Norton Police Department"]
[null,null,"Nottoway County Sheriff's Office"]
[null,null,"Occoquan Police Department"]
[null,null,"Old Dominion University Police Dept."]
[null,null,"Onancock Police Department"]
[null,null,"Onley Police Department"]
[null,null,"Orange County Sheriff's Office"]
[null,null,"Orange Police Department"]
[null,null,"Page County Sheriff's Office"]
[null,null,"Pamunkey Regional Jail"]
[null,null,"Parksley Police Department"]
[null,null,"Patrick County Sheriff's Office"]
[null,null,"Patrick Henry Community College Police Department"]
[null,null,"Pearisburg Police Department"]
[null,null,"Pembroke Police Department"]
[null,null,"Pennington Gap Police Department"]
[null,null,"Petersburg City Sheriff's Office"]
[null,null,"Petersburg Police Department"]
[null,null,"Peumansend Creek Regional Jail"]
[null,null,"Piedmont Regional Jail"]
[null,null,"Piedmont Virginia Community College Campus Police Department"]
[null,null,"Pittsylvania County Sheriff`s Office"]
[null,null,"Pocahontas Police Department"]
[null,null,"Poquoson Police Department"]
[null,null,"Portsmouth City Sheriff's Office"]
[null,null,"Portsmouth Police Department"]
[null,null,"Pound Police Department"]
[null,null,"Powhatan County Sheriff's Office"]
[null,null,"Prince Edward County Sheriff`s Office"]
[null,null,"Prince George County Sheriff`s Office"]
[null,null,"Prince George Police Department"]
[null,null,"Prince William County Police Department"]
[null,null,"Prince William County Sheriff`s Office"]
[null,null,"Prince William-Manassas Adult Regional Detention Center"]
[null,null,"Pulaski County Sheriff's Office"]
[null,null,"Pulaski Police Department"]
[null,null,"Purcellville Police Department"]
[null,null,"Quantico Police Department"]
[null,null,"Radford City Sheriff's Office"]
[null,null,"Radford Police Department"]
[null,null,"Radford University Police Department"]
[null,null,"Rappahannock County Sheriff`s Office"]
[null,null,"Rappahannock Regional Jail"]
[null,null,"Rappahannock, Shenandoah, Warren Regional Jail"]
[null,null,"Regent University Police Department"]
[null,null,"Remington Police Department"]
[null,null,"Rich Creek Police Department"]
[null,null,"Richard Bland College Police Department"]
[null,null,"Richlands Police Department"]
[null,null,"Richmond City Sheriff's Office"]
[null,null,"Richmond County Sheriff's Office"]
[null,null,"Richmond International Airport Police"]
[null,null,"Richmond Police Department"]
[null,null,"Riverside Regional Jail"]
[null,null,"Roanoke City Police Department"]
[null,null,"Roanoke City Sheriff's Office"]
[null,null,"Roanoke County Police Department"]
[null,null,"Roanoke County Sheriff's Office"]
[null,null,"Roanoke Police Academy"]
[null,null,"Roanoke Regional Airport Commission"]
[null,null,"Rockbridge County Sheriff`s Office"]
[null,null,"Rockbridge Regional Jail"]
[null,null,"Rockingham Co. Sheriff's Office"]
[null,null,"Rocky Mount Police Department"]
[null,null,"Rural Retreat Police Department"]
[null,null,"Russell County Sheriff's Office"]
[null,null,"Saint Paul Police Department"]
[null,null,"Salem City Sheriff's Office"]
[null,null,"Salem Police Department"]
[null,null,"Saltville Police Department"]
[null,null,"Saxis Police Department"]
[null,null,"Scott County Sheriff's Office"]
[null,null,"Scottsville Police Department"]
[null,null,"Shenandoah County Sheriff`s Office"]
[null,null,"Shenandoah Police Department"]
[null,null,"Smithfield Police Department"]
[null,null,"Smyth County Sheriff's Office"]
[null,null,"South Boston Police Department"]
[null,null,"South Hill Police Department"]
[null,null,"Southampton County Sheriff`s Office"]
[null,null,"Southside Regional Jail"]
[null,null,"Southwest Virginia Community College Police Department"]
[null,null,"Southwest Virginia Regional Jail Authority"]
[null,null,"Spotsylvania County Sheriff`s Office"]
[null,null,"Stafford County Sheriff's Office"]
[null,null,"Stanley Police Department"]
[null,null,"Staunton City Sheriff's Office"]
[null,null,"Staunton Police Department"]
[null,null,"Stephens City Police Department"]
[null,null,"Strasburg Police Department"]
[null,null,"Suffolk City Sheriff's Office"]
[null,null,"Suffolk Police Department"]
[null,null,"Surry County Sheriff's Office"]
[null,null,"Sussex County Sheriff's Office"]
[null,null,"Tangier Police Department"]
[null,null,"Tappahannock Police Department"]
[null,null,"Tazewell County Sheriff's Office"]
[null,null,"Tazewell Police Department"]
[null,null,"Thomas Nelson Community College Police Department"]
[null,null,"Timberville Police Department"]
[null,null,"University of Mary Washington Police Department"]
[null,null,"University of Richmond Police Department"]
[null,null,"University of Virginia Police Department"]
[null,null,"University of Virginia`s College at Wise Police Department"]
[null,null,"Victoria Police Department"]
[null,null,"Vienna Police Department"]
[null,null,"Vinton Police Department"]
[null,null,"Virginia Beach City Sheriff`s Office"]
[null,null,"Virginia Beach Police Department"]
[null,null,"Virginia Commonwealth University Police Department"]
[null,null,"Virginia Department of Alcohol Beverage Control "]
[null,null,"Virginia Department of Game & Inland Fisheries"]
[null,null,"Virginia Department of Charitable Gaming"]
[null,null,"Virginia Highlands Community College Police Department"]
[null,null,"Virginia Lottery Department"]
[null,null,"Virginia Marine Resources Commission"]
[null,null,"Virginia Military Institute Police Department"]
[null,null,"Virginia Peninsula Regional Jail"]
[null,null,"Virginia Port Authority Police Department"]
[null,null,"Virginia School for the Deaf and Blind Campus Police Department"]
[null,null,"Virginia State Police"]
[null,null,"Virginia State University Police Dept"]
[null,null,"Virginia Tech Police Department"]
[null,null,"Virginia Union University Police Department"]
[null,null,"Virginia Western Community College Police Department"]
[null,null,"Warren County Sheriff's Office"]
[null,null,"Warrenton Police Department"]
[null,null,"Warsaw Police Department"]
[null,null,"Washington County Sheriff`s Office"]
[null,null,"Waverly Police Department"]
[null,null,"Waynesboro City Sheriff's Office"]
[null,null,"Waynesboro Police Department"]
[null,null,"Weber City Police Department"]
[null,null,"West Point Police Department"]
[null,null,"Western Tidewater Regional Jail"]
[null,null,"Western Virginia Regional Jail"]
[null,null,"Westmoreland County Sheriff`s Office"]
[null,null,"White Stone Police Department"]
[null,null,"Williamsburg -James City County Sheriff`s Office"]
[null,null,"Williamsburg Police Department"]
[null,null,"Winchester City Sheriff's Office"]
[null,null,"Winchester Police Department"]
[null,null,"Windsor Police Department"]
[null,null,"Wise County Sheriff's Office"]
[null,null,"Wise Police Department"]
[null,null,"Woodstock Police Department"]
[null,null,"Wythe County Sheriff's Office"]
[null,null,"Wytheville Community College Police Department"]
[null,null,"Wytheville Police Department"]
[null,null,"York / Poquoson Sheriff`s Office"]
[null,null,"Other (Please Indicate Below)"]